Workbook

Sheet AssumptionT& Scenarios
A1: Projected Net Income
B2: Jan | C2: Feb | D2: Mar | E2: Apr | F2: Total
A3: Sales
A4: Exp1
A5: Exp2
A6: Exp3
A7: Exp4
A8: Exp5
A9: Exp6
A10: Exp7
A11: Total Exp
A12: Net Income
A14: Assumptions
A15: Sales Start | B15: 50000
A16: Sales Rate of Change | B16: 0.0075
A17: Exp1 | B17: 0.25
A18: Exp2 | B18: 0.15
A19: Exp3 | B19: 0.125
A20: Exp4 | B20: 0.12
A21: Exp5 | B21: 0.1055
A22: Exp6 | B22: 0.05
A23: Exp7 | B23: 0.0455

Sheet AssumptionT& Scenarios (2)
A1: Projected Net Income
B2: Jan | C2: Feb | D2: Mar | E2: Apr | F2: Total
A3: Sales | B3: =B15 -> 50000 | C3: =B3*(1+$B16) -> 50375 | D3: =C3*(1+$B16) -> 50752.8125 | E3: 51133.45859 | F3: =SUM(B3:E3) -> 202261.2711
A4: Exp1 | B4: =B$3*$B17 -> 12500 | C4: 12593.75 | D4: 12688.20312 | E4: 12783.36465 | F4: =SUM(B4:E4) -> 50565.31777
A5: Exp2 | B5: 7500 | C5: 7556.25 | D5: 7612.921875 | E5: 7670.018789 | F5: 30339.19066
A6: Exp3 | B6: 6250 | C6: 6296.875 | D6: 6344.101562 | E6: 6391.682324 | F6: 25282.65889
A7: Exp4 | B7: 6000 | C7: 6045 | D7: 6090.3375 | E7: 6136.015031 | F7: 24271.35253
A8: Exp5 | B8: 5275 | C8: 5314.5625 | D8: 5354.421719 | E8: 5394.579882 | F8: 21338.5641
A9: Exp6 | B9: 2500 | C9: 2518.75 | D9: 2537.640625 | E9: 2556.67293 | F9: 10113.06355
A10: Exp7 | B10: 2275 | C10: 2292.0625 | D10: 2309.252969 | E10: 2326.572366 | F10: 9202.887835
A11: Total Exp | B11: =SUM(B4:B10) -> 42300 | C11: 42617.25 | D11: 42936.87937 | E11: 43258.90597 | F11: 171113.0353
A12: Net Income | B12: =B3-B11 -> 7700 | C12: 7757.75 | D12: 7815.933125 | E12: 7874.552623 | F12: 31148.23575
A14: Assumptions
A15: Sales Start | B15: 50000
A16: Sales Rate of Change | B16: 0.0075
A17: Exp1 | B17: 0.25
A18: Exp2 | B18: 0.15
A19: Exp3 | B19: 0.125
A20: Exp4 | B20: 0.12
A21: Exp5 | B21: 0.1055
A22: Exp6 | B22: 0.05
A23: Exp7 | B23: 0.0455

Sheet FV
A1: Amount in Bank To Start | B1: 15000
A2: Yearly PMT | B2: 4000
A3: Start Rate | B3: 0.03
A4: Increment Rate | B4: 0.005
A5: Start Year | B5: 10
A6: Increment Year | B6: 5
A8: Year/Rate | B8: =B5 -> 10 | C8: =B8+$B6 -> 15 | D8: =C8+$B6 -> 20 | E8: 25 | F8: 30 | G8: 35 | H8: 40 | I8: 45
A9: =B3 -> 0.03
A10: =A9+B$4 -> 0.035
A11: =A10+B$4 -> 0.04
A12: 0.045
A13: 0.05
A14: 0.055
A15: 0.06
A16: 0.065
A17: 0.07
A18: 0.075
A19: 0.08
A20: 0.085
A21: 0.09
A22: 0.095
A23: 0.1
A24: 0.105

Sheet FV (2)
A1: Amount in Bank To Start | B1: 15000
A2: Yearly PMT | B2: 4000
A3: Start Rate | B3: 0.03
A4: Increment Rate | B4: 0.005
A5: Start Year | B5: 10
A6: Increment Year | B6: 5
A8: Year/Rate | B8: =B5 -> 10 | C8: =B8+$B6 -> 15 | D8: =C8+$B6 -> 20 | E8: 25 | F8: 30 | G8: 35 | H8: 40 | I8: 45
A9: =B3 -> 0.03 | B9: =FV($A9,B$8,-$B$2,-$B$1,1) -> 67389.92845 | C9: =FV($A9,C$8,-$B$2,-$B$1,1) -> 99997.03646 | D9: 137797.6114 | E9: 181618.838 | F9: 232419.6498 | G9: 291311.7139 | H9: 359583.757 | I9: 438729.7665
A10: =A9+B$4 -> 0.035 | B10: =FV($A10,B$8,-$B$2,-$B$1,1) -> 69726.94909 | C10: 105014.3513 | D10: 146924.7157 | E10: 196701.0815 | F10: 255819.7895 | G10: 326034.2694 | H10: 409427.0457 | I10: 508471.5041
A11: =A10+B$4 -> 0.04 | B11: 72149.06991 | C11: 110312.2772 | D11: 156743.654 | E11: 213234.5234 | F11: 281964.3037 | G11: 365584.5903 | H11: 467321.4547 | I11: 591099.9061
A12: 0.045 | B12: 74659.2565 | C12: 115906.5836 | D12: 167308.2576 | E12: 231364.0953 | F12: 311189.3232 | G12: 410666.0804 | H12: 534632.2184 | I12: 689116.5806
A13: 0.05 | B13: 77260.56805 | C13: 121813.8898 | D13: 178676.4728 | E13: 251249.1391 | F13: 343872.2951 | G13: 462085.5214 | H13: 612958.8825 | I13: 805515.7716
A14: 0.055 | B14: 79956.15986 | C14: 128051.7073 | D14: 190910.6644 | E14: 273064.8073 | F14: 380436.9864 | G14: 520768.1303 | H14: 704175.323 | I14: 943881.1888
A15: 0.06 | B15: 82749.286 | C15: 134638.4852 | D15: 204077.9388 | E15: 297003.5917 | F15: 421359.0771 | G15: 587774.7685 | H15: 810476.5033 | I15: 1108501.661
A16: 0.065 | B16: 85643.30201 | C16: 141593.6565 | D16: 218250.4909 | E16: 323276.9974 | F16: 467172.4133 | G16: 664321.6035 | H16: 934433.0797 | I16: 1304509.211
A17: 0.07 | B17: 88641.66763 | C17: 148937.6873 | D17: 233505.9741 | E17: 352117.371 | F17: 518475.9911 | G17: 751802.5616 | H17: 1079055.147 | I17: 1538043.827
A18: 0.075 | B18: 91747.94966 | C18: 156692.1285 | D18: 249927.8963 | E18: 383779.8987 | F18: 575941.7587 | G18: 851814.9603 | H18: 1247866.619 | I18: 1816449.994
A19: 0.08 | B19: 94965.82481 | C19: 164879.6689 | D19: 267606.0429 | E19: 418544.7885 | F19: 640323.3253 | G19: 966188.7563 | H19: 1444991.983 | I19: 2148511.008
A20: 0.085 | B20: 98299.08266 | C20: 173524.1913 | D20: 286636.9293 | E20: 456719.6544 | F20: 712465.682 | G20: 1097019.907 | H20: 1675257.441 | I20: 2544728.177
A21: 0.09 | B21: 101751.6287 | C21: 182650.8316 | D21: 307124.2832 | E21: 498642.1175 | F21: 793316.0451 | G21: 1246708.409 | H21: 1944308.761 | I21: 3017653.374
A22: 0.095 | B22: 105327.4873 | C22: 192286.0393 | D22: 329179.5607 | E22: 544682.6454 | F22: 883935.9502 | G22: 1418001.646 | H22: 2258748.553 | I22: 3582284.907
A23: 0.1 | B23: 109030.8051 | C23: 202457.642 | D23: 352922.497 | E23: 595247.6507 | F23: 985514.7339 | G23: 1614043.774 | H23: 2626296.079 | I23: 4256538.537
A24: 0.105 | B24: 112865.8541 | C24: 213194.912 | D24: 378481.6941 | E24: 650782.8686 | F24: 1099384.558 | G24: 1838431.96 | H24: 3055973.213 | I24: 5061807.613

Sheet Dates
A1: Date | B1: Manager | C1: Units Sold | E1: Min | F1: =MIN(A2:A3370) -> 2012-07-10 | V1: Date | W1: Manager | X1: Number Of Calls
A2: 2012-07-12 | B2: Franks | C2: 59 | E2: Max Date | F2: =MAX($A$2:$A$3370) -> 2012-10-18 | V2: =RANDBETWEEN(41100,41200) -> 2012-08-09 | W2: =INDEX({"Smith";"Thomas";"Radcoolinator";"Pham";"Chin";"Franks";"Boulowski";"Tins"},RANDBETWEEN(1,8)) -> Chin | X2: =IF(AND(V2>=41141,V2<=41160),RANDBETWEEN(200,500),RANDBETWEEN(25,475)) -> 299
A3: 2012-10-05 | B3: Tins | C3: 400
A4: 2012-08-04 | B4: Pham | C4: 31
A5: 2012-08-28 | B5: Smith | C5: 234 | E5: Start | F5: End | G5: Units Sold
A6: 2012-09-02 | B6: Thomas | C6: 407 | E6: 2012-07-09 | F6: =E6+6 -> 2012-07-15
A7: 2012-08-03 | B7: Radcoolinator | C7: 173 | E7: =F6+1 -> 2012-07-16 | F7: =E7+6 -> 2012-07-22
A8: 2012-08-09 | B8: Boulowski | C8: 445 | E8: =F7+1 -> 2012-07-23 | F8: 2012-07-29
A9: 2012-08-06 | B9: Boulowski | C9: 118 | E9: 2012-07-30 | F9: 2012-08-05
A10: 2012-10-02 | B10: Radcoolinator | C10: 66 | E10: 2012-08-06 | F10: 2012-08-12
A11: 2012-07-19 | B11: Thomas | C11: 344 | E11: 2012-08-13 | F11: 2012-08-19
A12: 2012-10-09 | B12: Boulowski | C12: 160 | E12: 2012-08-20 | F12: 2012-08-26
A13: 2012-09-07 | B13: Thomas | C13: 432 | E13: 2012-08-27 | F13: 2012-09-02
A14: 2012-09-14 | B14: Radcoolinator | C14: 339 | E14: 2012-09-03 | F14: 2012-09-09
A15: 2012-08-13 | B15: Pham | C15: 217 | E15: 2012-09-10 | F15: 2012-09-16
A16: 2012-07-13 | B16: Thomas | C16: 59 | E16: 2012-09-17 | F16: 2012-09-23
A17: 2012-09-25 | B17: Pham | C17: 435 | E17: 2012-09-24 | F17: 2012-09-30
A18: 2012-09-22 | B18: Tins | C18: 345 | E18: 2012-10-01 | F18: 2012-10-07
A19: 2012-10-16 | B19: Radcoolinator | C19: 286 | E19: 2012-10-08 | F19: 2012-10-14
A20: 2012-08-24 | B20: Thomas | C20: 464 | E20: 2012-10-15 | F20: 2012-10-21
A21: 2012-08-21 | B21: Thomas | C21: 320
A22: 2012-08-25 | B22: Boulowski | C22: 279
A23: 2012-09-14 | B23: Smith | C23: 432
A24: 2012-08-01 | B24: Chin | C24: 191
A25: 2012-08-09 | B25: Boulowski | C25: 313
A26: 2012-07-12 | B26: Tins | C26: 276
A27: 2012-09-18 | B27: Pham | C27: 426
A28: 2012-09-19 | B28: Boulowski | C28: 324
A29: 2012-10-06 | B29: Boulowski | C29: 96
A30: 2012-08-21 | B30: Franks | C30: 477
A31: 2012-10-09 | B31: Chin | C31: 265
A32: 2012-08-20 | B32: Smith | C32: 232
A33: 2012-10-18 | B33: Thomas | C33: 325
A34: 2012-07-20 | B34: Franks | C34: 260
A35: 2012-08-28 | B35: Pham | C35: 419
A36: 2012-09-11 | B36: Thomas | C36: 143
A37: 2012-09-19 | B37: Radcoolinator | C37: 176
A38: 2012-09-30 | B38: Boulowski | C38: 369
A39: 2012-10-05 | B39: Boulowski | C39: 235
A40: 2012-08-28 | B40: Boulowski | C40: 317
A41: 2012-10-10 | B41: Tins | C41: 73
A42: 2012-07-30 | B42: Tins | C42: 190
A43: 2012-09-01 | B43: Tins | C43: 237
A44: 2012-08-04 | B44: Franks | C44: 94
A45: 2012-10-06 | B45: Thomas | C45: 244
A46: 2012-08-06 | B46: Franks | C46: 182
A47: 2012-09-06 | B47: Thomas | C47: 475
A48: 2012-07-16 | B48: Chin | C48: 301
A49: 2012-10-08 | B49: Chin | C49: 139
A50: 2012-09-24 | B50: Smith | C50: 26
A51: 2012-07-30 | B51: Pham | C51: 87
A52: 2012-07-13 | B52: Pham | C52: 91
A53: 2012-08-15 | B53: Boulowski | C53: 343
A54: 2012-07-27 | B54: Franks | C54: 222
A55: 2012-08-14 | B55: Pham | C55: 349
A56: 2012-08-04 | B56: Pham | C56: 154
A57: 2012-09-13 | B57: Thomas | C57: 93
A58: 2012-07-31 | B58: Boulowski | C58: 76
A59: 2012-10-10 | B59: Thomas | C59: 280
A60: 2012-10-10 | B60: Boulowski | C60: 302
A61: 2012-10-09 | B61: Radcoolinator | C61: 57
A62: 2012-08-29 | B62: Radcoolinator | C62: 275
A63: 2012-08-03 | B63: Franks | C63: 432
A64: 2012-10-15 | B64: Pham | C64: 124
A65: 2012-09-07 | B65: Thomas | C65: 355
A66: 2012-07-23 | B66: Chin | C66: 238
A67: 2012-09-09 | B67: Chin | C67: 263
A68: 2012-10-18 | B68: Pham | C68: 174
A69: 2012-07-15 | B69: Tins | C69: 269
A70: 2012-10-09 | B70: Tins | C70: 135
A71: 2012-09-30 | B71: Smith | C71: 397
A72: 2012-10-01 | B72: Thomas | C72: 427
A73: 2012-09-07 | B73: Franks | C73: 376
A74: 2012-09-10 | B74: Chin | C74: 283
A75: 2012-08-31 | B75: Pham | C75: 318
A76: 2012-08-16 | B76: Franks | C76: 123
A77: 2012-08-22 | B77: Thomas | C77: 439
A78: 2012-07-26 | B78: Smith | C78: 387
A79: 2012-08-14 | B79: Boulowski | C79: 119
A80: 2012-07-21 | B80: Boulowski | C80: 388
A81: 2012-10-07 | B81: Franks | C81: 26
A82: 2012-10-01 | B82: Boulowski | C82: 308
A83: 2012-09-20 | B83: Pham | C83: 456
A84: 2012-07-21 | B84: Tins | C84: 202
A85: 2012-07-14 | B85: Franks | C85: 207
A86: 2012-10-05 | B86: Chin | C86: 327
A87: 2012-08-03 | B87: Franks | C87: 137
A88: 2012-10-06 | B88: Boulowski | C88: 426
A89: 2012-09-13 | B89: Boulowski | C89: 35
A90: 2012-07-23 | B90: Tins | C90: 105
A91: 2012-07-11 | B91: Smith | C91: 455
A92: 2012-08-07 | B92: Smith | C92: 323
A93: 2012-07-28 | B93: Smith | C93: 267
A94: 2012-08-01 | B94: Tins | C94: 452
A95: 2012-09-29 | B95: Chin | C95: 172
A96: 2012-09-18 | B96: Smith | C96: 454
A97: 2012-09-10 | B97: Pham | C97: 208
A98: 2012-10-17 | B98: Thomas | C98: 291
A99: 2012-08-28 | B99: Tins | C99: 276
A100: 2012-08-30 | B100: Smith | C100: 333
A101: 2012-10-08 | B101: Tins | C101: 419
A102: 2012-08-20 | B102: Radcoolinator | C102: 260
A103: 2012-09-13 | B103: Thomas | C103: 240
A104: 2012-07-14 | B104: Thomas | C104: 353
A105: 2012-09-01 | B105: Smith | C105: 476
A106: 2012-08-26 | B106: Radcoolinator | C106: 200
A107: 2012-09-25 | B107: Franks | C107: 194
A108: 2012-07-14 | B108: Thomas | C108: 335
A109: 2012-08-24 | B109: Franks | C109: 281
A110: 2012-07-20 | B110: Thomas | C110: 200
A111: 2012-09-07 | B111: Smith | C111: 329
A112: 2012-07-25 | B112: Tins | C112: 384
A113: 2012-10-16 | B113: Pham | C113: 264
A114: 2012-08-08 | B114: Thomas | C114: 297
A115: 2012-07-13 | B115: Pham | C115: 235
A116: 2012-07-12 | B116: Chin | C116: 58
A117: 2012-10-07 | B117: Pham | C117: 202
A118: 2012-07-17 | B118: Radcoolinator | C118: 362
A119: 2012-10-03 | B119: Franks | C119: 52
A120: 2012-10-06 | B120: Franks | C120: 288
A121: 2012-07-21 | B121: Boulowski | C121: 426
A122: 2012-08-14 | B122: Franks | C122: 131
A123: 2012-09-06 | B123: Thomas | C123: 401
A124: 2012-08-24 | B124: Pham | C124: 479
A125: 2012-10-14 | B125: Chin | C125: 186
A126: 2012-09-07 | B126: Chin | C126: 445
A127: 2012-08-12 | B127: Pham | C127: 324
A128: 2012-09-04 | B128: Chin | C128: 231
A129: 2012-10-12 | B129: Tins | C129: 76
A130: 2012-10-03 | B130: Pham | C130: 272
A131: 2012-08-04 | B131: Franks | C131: 45
A132: 2012-07-31 | B132: Chin | C132: 235
A133: 2012-09-15 | B133: Radcoolinator | C133: 402
A134: 2012-07-23 | B134: Radcoolinator | C134: 365
A135: 2012-09-17 | B135: Radcoolinator | C135: 358
A136: 2012-09-26 | B136: Boulowski | C136: 133
A137: 2012-09-15 | B137: Franks | C137: 270
A138: 2012-09-05 | B138: Radcoolinator | C138: 402
A139: 2012-08-28 | B139: Radcoolinator | C139: 359
A140: 2012-08-18 | B140: Smith | C140: 222
A141: 2012-09-08 | B141: Smith | C141: 288
A142: 2012-07-26 | B142: Pham | C142: 369
A143: 2012-09-06 | B143: Pham | C143: 206
A144: 2012-10-16 | B144: Radcoolinator | C144: 172
A145: 2012-07-31 | B145: Smith | C145: 277
A146: 2012-07-26 | B146: Tins | C146: 158
A147: 2012-08-21 | B147: Chin | C147: 492
A148: 2012-07-20 | B148: Radcoolinator | C148: 180
A149: 2012-09-09 | B149: Boulowski | C149: 239
A150: 2012-08-26 | B150: Radcoolinator | C150: 263
A151: 2012-08-02 | B151: Smith | C151: 167
A152: 2012-08-25 | B152: Thomas | C152: 438
A153: 2012-09-21 | B153: Pham | C153: 179
A154: 2012-08-07 | B154: Pham | C154: 261
A155: 2012-07-30 | B155: Radcoolinator | C155: 325
A156: 2012-09-05 | B156: Boulowski | C156: 207
A157: 2012-07-15 | B157: Pham | C157: 431
A158: 2012-09-26 | B158: Boulowski | C158: 181
A159: 2012-07-18 | B159: Boulowski | C159: 279
A160: 2012-08-27 | B160: Boulowski | C160: 332
A161: 2012-10-02 | B161: Franks | C161: 356
A162: 2012-08-09 | B162: Pham | C162: 442
A163: 2012-10-12 | B163: Radcoolinator | C163: 173
A164: 2012-09-29 | B164: Tins | C164: 77
A165: 2012-09-14 | B165: Thomas | C165: 104
A166: 2012-10-08 | B166: Pham | C166: 72
A167: 2012-09-27 | B167: Franks | C167: 422
A168: 2012-10-18 | B168: Radcoolinator | C168: 448
A169: 2012-08-23 | B169: Pham | C169: 337
A170: 2012-08-21 | B170: Thomas | C170: 290
A171: 2012-07-27 | B171: Thomas | C171: 103
A172: 2012-09-25 | B172: Chin | C172: 388
A173: 2012-07-20 | B173: Thomas | C173: 131
A174: 2012-08-15 | B174: Tins | C174: 115
A175: 2012-09-06 | B175: Radcoolinator | C175: 483
A176: 2012-10-13 | B176: Thomas | C176: 405
A177: 2012-08-21 | B177: Radcoolinator | C177: 372
A178: 2012-08-07 | B178: Pham | C178: 209
A179: 2012-08-06 | B179: Pham | C179: 280
A180: 2012-07-21 | B180: Pham | C180: 228
A181: 2012-08-17 | B181: Smith | C181: 184
A182: 2012-07-18 | B182: Pham | C182: 295
A183: 2012-08-18 | B183: Tins | C183: 363
A184: 2012-10-01 | B184: Thomas | C184: 134
A185: 2012-08-07 | B185: Pham | C185: 102
A186: 2012-07-30 | B186: Radcoolinator | C186: 186
A187: 2012-08-15 | B187: Tins | C187: 264
A188: 2012-09-21 | B188: Pham | C188: 314
A189: 2012-09-02 | B189: Boulowski | C189: 430
A190: 2012-08-23 | B190: Thomas | C190: 315
A191: 2012-08-13 | B191: Chin | C191: 351
A192: 2012-08-22 | B192: Chin | C192: 216
A193: 2012-07-17 | B193: Tins | C193: 53
A194: 2012-07-30 | B194: Radcoolinator | C194: 281
A195: 2012-07-14 | B195: Tins | C195: 122
A196: 2012-07-17 | B196: Radcoolinator | C196: 389
A197: 2012-09-16 | B197: Franks | C197: 231
A198: 2012-09-22 | B198: Smith | C198: 354
A199: 2012-07-13 | B199: Thomas | C199: 48
A200: 2012-07-27 | B200: Radcoolinator | C200: 437
... 3170 more rows

Sheet Dates (an)
A1: Date | B1: Manager | C1: Units Sold | E1: Min | F1: =MIN(A2:A3370) -> 2012-07-10 | V1: Date | W1: Manager | X1: Number Of Calls
A2: 2012-07-12 | B2: Franks | C2: 59 | E2: Max Date | F2: =MAX($A$2:$A$3370) -> 2012-10-18 | V2: =RANDBETWEEN(41100,41200) -> 2012-07-23 | W2: =INDEX({"Smith";"Thomas";"Radcoolinator";"Pham";"Chin";"Franks";"Boulowski";"Tins"},RANDBETWEEN(1,8)) -> Thomas | X2: =IF(AND(V2>=41141,V2<=41160),RANDBETWEEN(200,500),RANDBETWEEN(25,475)) -> 102
A3: 2012-10-05 | B3: Tins | C3: 400
A4: 2012-08-04 | B4: Pham | C4: 31
A5: 2012-08-28 | B5: Smith | C5: 234 | E5: Start | F5: End | G5: Units Sold
A6: 2012-09-02 | B6: Thomas | C6: 407 | E6: 2012-07-09 | F6: =E6+6 -> 2012-07-15 | G6: =SUMIFS($C$2:$C$3370,$A$2:$A$3370,">="&E6,$A$2:$A$3370,"<="&F6) -> 52952
A7: 2012-08-03 | B7: Radcoolinator | C7: 173 | E7: =F6+1 -> 2012-07-16 | F7: =E7+6 -> 2012-07-22 | G7: =SUMIFS($C$2:$C$3370,$A$2:$A$3370,">="&E7,$A$2:$A$3370,"<="&F7) -> 57480
A8: 2012-08-09 | B8: Boulowski | C8: 445 | E8: =F7+1 -> 2012-07-23 | F8: 2012-07-29 | G8: 60265
A9: 2012-08-06 | B9: Boulowski | C9: 118 | E9: 2012-07-30 | F9: 2012-08-05 | G9: 58939
A10: 2012-10-02 | B10: Radcoolinator | C10: 66 | E10: 2012-08-06 | F10: 2012-08-12 | G10: 61731
A11: 2012-07-19 | B11: Thomas | C11: 344 | E11: 2012-08-13 | F11: 2012-08-19 | G11: 64653
A12: 2012-10-09 | B12: Boulowski | C12: 160 | E12: 2012-08-20 | F12: 2012-08-26 | G12: 80186
A13: 2012-09-07 | B13: Thomas | C13: 432 | E13: 2012-08-27 | F13: 2012-09-02 | G13: 78136
A14: 2012-09-14 | B14: Radcoolinator | C14: 339 | E14: 2012-09-03 | F14: 2012-09-09 | G14: 79587
A15: 2012-08-13 | B15: Pham | C15: 217 | E15: 2012-09-10 | F15: 2012-09-16 | G15: 55576
A16: 2012-07-13 | B16: Thomas | C16: 59 | E16: 2012-09-17 | F16: 2012-09-23 | G16: 53768
A17: 2012-09-25 | B17: Pham | C17: 435 | E17: 2012-09-24 | F17: 2012-09-30 | G17: 49938
A18: 2012-09-22 | B18: Tins | C18: 345 | E18: 2012-10-01 | F18: 2012-10-07 | G18: 63969
A19: 2012-10-16 | B19: Radcoolinator | C19: 286 | E19: 2012-10-08 | F19: 2012-10-14 | G19: 62189
A20: 2012-08-24 | B20: Thomas | C20: 464 | E20: 2012-10-15 | F20: 2012-10-21 | G20: 34691
A21: 2012-08-21 | B21: Thomas | C21: 320
A22: 2012-08-25 | B22: Boulowski | C22: 279
A23: 2012-09-14 | B23: Smith | C23: 432
A24: 2012-08-01 | B24: Chin | C24: 191
A25: 2012-08-09 | B25: Boulowski | C25: 313
A26: 2012-07-12 | B26: Tins | C26: 276
A27: 2012-09-18 | B27: Pham | C27: 426
A28: 2012-09-19 | B28: Boulowski | C28: 324
A29: 2012-10-06 | B29: Boulowski | C29: 96
A30: 2012-08-21 | B30: Franks | C30: 477
A31: 2012-10-09 | B31: Chin | C31: 265
A32: 2012-08-20 | B32: Smith | C32: 232
A33: 2012-10-18 | B33: Thomas | C33: 325
A34: 2012-07-20 | B34: Franks | C34: 260
A35: 2012-08-28 | B35: Pham | C35: 419
A36: 2012-09-11 | B36: Thomas | C36: 143
A37: 2012-09-19 | B37: Radcoolinator | C37: 176
A38: 2012-09-30 | B38: Boulowski | C38: 369
A39: 2012-10-05 | B39: Boulowski | C39: 235
A40: 2012-08-28 | B40: Boulowski | C40: 317
A41: 2012-10-10 | B41: Tins | C41: 73
A42: 2012-07-30 | B42: Tins | C42: 190
A43: 2012-09-01 | B43: Tins | C43: 237
A44: 2012-08-04 | B44: Franks | C44: 94
A45: 2012-10-06 | B45: Thomas | C45: 244
A46: 2012-08-06 | B46: Franks | C46: 182
A47: 2012-09-06 | B47: Thomas | C47: 475
A48: 2012-07-16 | B48: Chin | C48: 301
A49: 2012-10-08 | B49: Chin | C49: 139
A50: 2012-09-24 | B50: Smith | C50: 26
A51: 2012-07-30 | B51: Pham | C51: 87
A52: 2012-07-13 | B52: Pham | C52: 91
A53: 2012-08-15 | B53: Boulowski | C53: 343
A54: 2012-07-27 | B54: Franks | C54: 222
A55: 2012-08-14 | B55: Pham | C55: 349
A56: 2012-08-04 | B56: Pham | C56: 154
A57: 2012-09-13 | B57: Thomas | C57: 93
A58: 2012-07-31 | B58: Boulowski | C58: 76
A59: 2012-10-10 | B59: Thomas | C59: 280
A60: 2012-10-10 | B60: Boulowski | C60: 302
A61: 2012-10-09 | B61: Radcoolinator | C61: 57
A62: 2012-08-29 | B62: Radcoolinator | C62: 275
A63: 2012-08-03 | B63: Franks | C63: 432
A64: 2012-10-15 | B64: Pham | C64: 124
A65: 2012-09-07 | B65: Thomas | C65: 355
A66: 2012-07-23 | B66: Chin | C66: 238
A67: 2012-09-09 | B67: Chin | C67: 263
A68: 2012-10-18 | B68: Pham | C68: 174
A69: 2012-07-15 | B69: Tins | C69: 269
A70: 2012-10-09 | B70: Tins | C70: 135
A71: 2012-09-30 | B71: Smith | C71: 397
A72: 2012-10-01 | B72: Thomas | C72: 427
A73: 2012-09-07 | B73: Franks | C73: 376
A74: 2012-09-10 | B74: Chin | C74: 283
A75: 2012-08-31 | B75: Pham | C75: 318
A76: 2012-08-16 | B76: Franks | C76: 123
A77: 2012-08-22 | B77: Thomas | C77: 439
A78: 2012-07-26 | B78: Smith | C78: 387
A79: 2012-08-14 | B79: Boulowski | C79: 119
A80: 2012-07-21 | B80: Boulowski | C80: 388
A81: 2012-10-07 | B81: Franks | C81: 26
A82: 2012-10-01 | B82: Boulowski | C82: 308
A83: 2012-09-20 | B83: Pham | C83: 456
A84: 2012-07-21 | B84: Tins | C84: 202
A85: 2012-07-14 | B85: Franks | C85: 207
A86: 2012-10-05 | B86: Chin | C86: 327
A87: 2012-08-03 | B87: Franks | C87: 137
A88: 2012-10-06 | B88: Boulowski | C88: 426
A89: 2012-09-13 | B89: Boulowski | C89: 35
A90: 2012-07-23 | B90: Tins | C90: 105
A91: 2012-07-11 | B91: Smith | C91: 455
A92: 2012-08-07 | B92: Smith | C92: 323
A93: 2012-07-28 | B93: Smith | C93: 267
A94: 2012-08-01 | B94: Tins | C94: 452
A95: 2012-09-29 | B95: Chin | C95: 172
A96: 2012-09-18 | B96: Smith | C96: 454
A97: 2012-09-10 | B97: Pham | C97: 208
A98: 2012-10-17 | B98: Thomas | C98: 291
A99: 2012-08-28 | B99: Tins | C99: 276
A100: 2012-08-30 | B100: Smith | C100: 333
A101: 2012-10-08 | B101: Tins | C101: 419
A102: 2012-08-20 | B102: Radcoolinator | C102: 260
A103: 2012-09-13 | B103: Thomas | C103: 240
A104: 2012-07-14 | B104: Thomas | C104: 353
A105: 2012-09-01 | B105: Smith | C105: 476
A106: 2012-08-26 | B106: Radcoolinator | C106: 200
A107: 2012-09-25 | B107: Franks | C107: 194
A108: 2012-07-14 | B108: Thomas | C108: 335
A109: 2012-08-24 | B109: Franks | C109: 281
A110: 2012-07-20 | B110: Thomas | C110: 200
A111: 2012-09-07 | B111: Smith | C111: 329
A112: 2012-07-25 | B112: Tins | C112: 384
A113: 2012-10-16 | B113: Pham | C113: 264
A114: 2012-08-08 | B114: Thomas | C114: 297
A115: 2012-07-13 | B115: Pham | C115: 235
A116: 2012-07-12 | B116: Chin | C116: 58
A117: 2012-10-07 | B117: Pham | C117: 202
A118: 2012-07-17 | B118: Radcoolinator | C118: 362
A119: 2012-10-03 | B119: Franks | C119: 52
A120: 2012-10-06 | B120: Franks | C120: 288
A121: 2012-07-21 | B121: Boulowski | C121: 426
A122: 2012-08-14 | B122: Franks | C122: 131
A123: 2012-09-06 | B123: Thomas | C123: 401
A124: 2012-08-24 | B124: Pham | C124: 479
A125: 2012-10-14 | B125: Chin | C125: 186
A126: 2012-09-07 | B126: Chin | C126: 445
A127: 2012-08-12 | B127: Pham | C127: 324
A128: 2012-09-04 | B128: Chin | C128: 231
A129: 2012-10-12 | B129: Tins | C129: 76
A130: 2012-10-03 | B130: Pham | C130: 272
A131: 2012-08-04 | B131: Franks | C131: 45
A132: 2012-07-31 | B132: Chin | C132: 235
A133: 2012-09-15 | B133: Radcoolinator | C133: 402
A134: 2012-07-23 | B134: Radcoolinator | C134: 365
A135: 2012-09-17 | B135: Radcoolinator | C135: 358
A136: 2012-09-26 | B136: Boulowski | C136: 133
A137: 2012-09-15 | B137: Franks | C137: 270
A138: 2012-09-05 | B138: Radcoolinator | C138: 402
A139: 2012-08-28 | B139: Radcoolinator | C139: 359
A140: 2012-08-18 | B140: Smith | C140: 222
A141: 2012-09-08 | B141: Smith | C141: 288
A142: 2012-07-26 | B142: Pham | C142: 369
A143: 2012-09-06 | B143: Pham | C143: 206
A144: 2012-10-16 | B144: Radcoolinator | C144: 172
A145: 2012-07-31 | B145: Smith | C145: 277
A146: 2012-07-26 | B146: Tins | C146: 158
A147: 2012-08-21 | B147: Chin | C147: 492
A148: 2012-07-20 | B148: Radcoolinator | C148: 180
A149: 2012-09-09 | B149: Boulowski | C149: 239
A150: 2012-08-26 | B150: Radcoolinator | C150: 263
A151: 2012-08-02 | B151: Smith | C151: 167
A152: 2012-08-25 | B152: Thomas | C152: 438
A153: 2012-09-21 | B153: Pham | C153: 179
A154: 2012-08-07 | B154: Pham | C154: 261
A155: 2012-07-30 | B155: Radcoolinator | C155: 325
A156: 2012-09-05 | B156: Boulowski | C156: 207
A157: 2012-07-15 | B157: Pham | C157: 431
A158: 2012-09-26 | B158: Boulowski | C158: 181
A159: 2012-07-18 | B159: Boulowski | C159: 279
A160: 2012-08-27 | B160: Boulowski | C160: 332
A161: 2012-10-02 | B161: Franks | C161: 356
A162: 2012-08-09 | B162: Pham | C162: 442
A163: 2012-10-12 | B163: Radcoolinator | C163: 173
A164: 2012-09-29 | B164: Tins | C164: 77
A165: 2012-09-14 | B165: Thomas | C165: 104
A166: 2012-10-08 | B166: Pham | C166: 72
A167: 2012-09-27 | B167: Franks | C167: 422
A168: 2012-10-18 | B168: Radcoolinator | C168: 448
A169: 2012-08-23 | B169: Pham | C169: 337
A170: 2012-08-21 | B170: Thomas | C170: 290
A171: 2012-07-27 | B171: Thomas | C171: 103
A172: 2012-09-25 | B172: Chin | C172: 388
A173: 2012-07-20 | B173: Thomas | C173: 131
A174: 2012-08-15 | B174: Tins | C174: 115
A175: 2012-09-06 | B175: Radcoolinator | C175: 483
A176: 2012-10-13 | B176: Thomas | C176: 405
A177: 2012-08-21 | B177: Radcoolinator | C177: 372
A178: 2012-08-07 | B178: Pham | C178: 209
A179: 2012-08-06 | B179: Pham | C179: 280
A180: 2012-07-21 | B180: Pham | C180: 228
A181: 2012-08-17 | B181: Smith | C181: 184
A182: 2012-07-18 | B182: Pham | C182: 295
A183: 2012-08-18 | B183: Tins | C183: 363
A184: 2012-10-01 | B184: Thomas | C184: 134
A185: 2012-08-07 | B185: Pham | C185: 102
A186: 2012-07-30 | B186: Radcoolinator | C186: 186
A187: 2012-08-15 | B187: Tins | C187: 264
A188: 2012-09-21 | B188: Pham | C188: 314
A189: 2012-09-02 | B189: Boulowski | C189: 430
A190: 2012-08-23 | B190: Thomas | C190: 315
A191: 2012-08-13 | B191: Chin | C191: 351
A192: 2012-08-22 | B192: Chin | C192: 216
A193: 2012-07-17 | B193: Tins | C193: 53
A194: 2012-07-30 | B194: Radcoolinator | C194: 281
A195: 2012-07-14 | B195: Tins | C195: 122
A196: 2012-07-17 | B196: Radcoolinator | C196: 389
A197: 2012-09-16 | B197: Franks | C197: 231
A198: 2012-09-22 | B198: Smith | C198: 354
A199: 2012-07-13 | B199: Thomas | C199: 48
A200: 2012-07-27 | B200: Radcoolinator | C200: 437
... 3170 more rows

Sheet PMT
A1: Loan | B1: 250000
A2: Annual Rate | B2: 0.0975
A3: Periods Per Year | B3: 12
A4: Period Rate
A5: Years | B5: 30
A6: Total Periods
A7: Baloon Payment at End | B7: 10000
A8: Period Payment
A10: Periods | B10: PMT | C10: Interest Paid | D10: Loan Reduction | E10: Balance In Account
A11: 0
A12: 1
A13: 2
A14: 3
A15: 4
A16: 5
A17: 6
A18: 7
A19: 8
A20: 9
A21: 10
A22: 11
A23: 12
A24: 13
A25: 14
A26: 15
A27: 16
A28: 17
A29: 18
A30: 19
A31: 20
A32: 21
A33: 22
A34: 23
A35: 24
A36: 25
A37: 26
A38: 27
A39: 28
A40: 29
A41: 30
A42: 31
A43: 32
A44: 33
A45: 34
A46: 35
A47: 36
A48: 37
A49: 38
A50: 39
A51: 40
A52: 41
A53: 42
A54: 43
A55: 44
A56: 45
A57: 46
A58: 47
A59: 48
A60: 49
A61: 50
A62: 51
A63: 52
A64: 53
A65: 54
A66: 55
A67: 56
A68: 57
A69: 58
A70: 59
A71: 60
A72: 61
A73: 62
A74: 63
A75: 64
A76: 65
A77: 66
A78: 67
A79: 68
A80: 69
A81: 70
A82: 71
A83: 72
A84: 73
A85: 74
A86: 75
A87: 76
A88: 77
A89: 78
A90: 79
A91: 80
A92: 81
A93: 82
A94: 83
A95: 84
A96: 85
A97: 86
A98: 87
A99: 88
A100: 89
A101: 90
A102: 91
A103: 92
A104: 93
A105: 94
A106: 95
A107: 96
A108: 97
A109: 98
A110: 99
A111: 100
A112: 101
A113: 102
A114: 103
A115: 104
A116: 105
A117: 106
A118: 107
A119: 108
A120: 109
A121: 110
A122: 111
A123: 112
A124: 113
A125: 114
A126: 115
A127: 116
A128: 117
A129: 118
A130: 119
A131: 120
A132: 121
A133: 122
A134: 123
A135: 124
A136: 125
A137: 126
A138: 127
A139: 128
A140: 129
A141: 130
A142: 131
A143: 132
A144: 133
A145: 134
A146: 135
A147: 136
A148: 137
A149: 138
A150: 139
A151: 140
A152: 141
A153: 142
A154: 143
A155: 144
A156: 145
A157: 146
A158: 147
A159: 148
A160: 149
A161: 150
A162: 151
A163: 152
A164: 153
A165: 154
A166: 155
A167: 156
A168: 157
A169: 158
A170: 159
A171: 160
A172: 161
A173: 162
A174: 163
A175: 164
A176: 165
A177: 166
A178: 167
A179: 168
A180: 169
A181: 170
A182: 171
A183: 172
A184: 173
A185: 174
A186: 175
A187: 176
A188: 177
A189: 178
A190: 179
A191: 180
A192: 181
A193: 182
A194: 183
A195: 184
A196: 185
A197: 186
A198: 187
A199: 188
A200: 189
A201: 190
... 170 more rows

Sheet PMT (2)
A1: Loan | B1: 250000
A2: Annual Rate | B2: 0.0975
A3: Periods Per Year | B3: 12
A4: Period Rate | B4: =B2/B3 -> 0.008125
A5: Years | B5: 30
A6: Total Periods | B6: =B5*B3 -> 360
A7: Baloon Payment at End | B7: 10000
A8: Period Payment | B8: =PMT(B4,B6,B1,-B7) -> -2143.220589
A10: Periods | B10: PMT | C10: Interest Paid | D10: Loan Reduction | E10: Balance In Account
A11: 0 | E11: =B1 -> 250000
A12: 1 | B12: =-B$8 -> 2143.220589 | C12: =E11*B$4 -> 2031.25 | D12: =B12-C12 -> 111.9705889 | E12: =E11-D12 -> 249888.0294
A13: 2 | B13: =-B$8 -> 2143.220589 | C13: =E12*B$4 -> 2030.340239 | D13: =B13-C13 -> 112.88035 | E13: =E12-D13 -> 249775.1491
A14: 3 | B14: 2143.220589 | C14: 2029.423086 | D14: 113.7975028 | E14: 249661.3516
A15: 4 | B15: 2143.220589 | C15: 2028.498481 | D15: 114.7221075 | E15: 249546.6295
A16: 5 | B16: 2143.220589 | C16: 2027.566364 | D16: 115.6542247 | E16: 249430.9752
A17: 6 | B17: 2143.220589 | C17: 2026.626674 | D17: 116.5939152 | E17: 249314.3813
A18: 7 | B18: 2143.220589 | C18: 2025.679348 | D18: 117.5412408 | E18: 249196.8401
A19: 8 | B19: 2143.220589 | C19: 2024.724326 | D19: 118.4962634 | E19: 249078.3438
A20: 9 | B20: 2143.220589 | C20: 2023.761543 | D20: 119.4590455 | E20: 248958.8848
A21: 10 | B21: 2143.220589 | C21: 2022.790939 | D21: 120.4296503 | E21: 248838.4551
A22: 11 | B22: 2143.220589 | C22: 2021.812448 | D22: 121.4081412 | E22: 248717.047
A23: 12 | B23: 2143.220589 | C23: 2020.826007 | D23: 122.3945823 | E23: 248594.6524
A24: 13 | B24: 2143.220589 | C24: 2019.831551 | D24: 123.3890383 | E24: 248471.2633
A25: 14 | B25: 2143.220589 | C25: 2018.829015 | D25: 124.3915742 | E25: 248346.8718
A26: 15 | B26: 2143.220589 | C26: 2017.818333 | D26: 125.4022558 | E26: 248221.4695
A27: 16 | B27: 2143.220589 | C27: 2016.79944 | D27: 126.4211491 | E27: 248095.0484
A28: 17 | B28: 2143.220589 | C28: 2015.772268 | D28: 127.4483209 | E28: 247967.6
A29: 18 | B29: 2143.220589 | C29: 2014.73675 | D29: 128.4838385 | E29: 247839.1162
A30: 19 | B30: 2143.220589 | C30: 2013.692819 | D30: 129.5277697 | E30: 247709.5884
A31: 20 | B31: 2143.220589 | C31: 2012.640406 | D31: 130.5801829 | E31: 247579.0083
A32: 21 | B32: 2143.220589 | C32: 2011.579442 | D32: 131.6411468 | E32: 247447.3671
A33: 22 | B33: 2143.220589 | C33: 2010.509858 | D33: 132.7107312 | E33: 247314.6564
A34: 23 | B34: 2143.220589 | C34: 2009.431583 | D34: 133.7890059 | E34: 247180.8674
A35: 24 | B35: 2143.220589 | C35: 2008.344547 | D35: 134.8760415 | E35: 247045.9913
A36: 25 | B36: 2143.220589 | C36: 2007.24868 | D36: 135.9719094 | E36: 246910.0194
A37: 26 | B37: 2143.220589 | C37: 2006.143908 | D37: 137.0766811 | E37: 246772.9427
A38: 27 | B38: 2143.220589 | C38: 2005.03016 | D38: 138.1904292 | E38: 246634.7523
A39: 28 | B39: 2143.220589 | C39: 2003.907363 | D39: 139.3132264 | E39: 246495.4391
A40: 29 | B40: 2143.220589 | C40: 2002.775443 | D40: 140.4451464 | E40: 246354.9939
A41: 30 | B41: 2143.220589 | C41: 2001.634326 | D41: 141.5862632 | E41: 246213.4077
A42: 31 | B42: 2143.220589 | C42: 2000.483937 | D42: 142.7366516 | E42: 246070.671
A43: 32 | B43: 2143.220589 | C43: 1999.324202 | D43: 143.8963869 | E43: 245926.7746
A44: 33 | B44: 2143.220589 | C44: 1998.155044 | D44: 145.065545 | E44: 245781.7091
A45: 34 | B45: 2143.220589 | C45: 1996.976386 | D45: 146.2442026 | E45: 245635.4649
A46: 35 | B46: 2143.220589 | C46: 1995.788152 | D46: 147.4324367 | E46: 245488.0325
A47: 36 | B47: 2143.220589 | C47: 1994.590264 | D47: 148.6303252 | E47: 245339.4021
A48: 37 | B48: 2143.220589 | C48: 1993.382642 | D48: 149.8379466 | E48: 245189.5642
A49: 38 | B49: 2143.220589 | C49: 1992.165209 | D49: 151.05538 | E49: 245038.5088
A50: 39 | B50: 2143.220589 | C50: 1990.937884 | D50: 152.2827049 | E50: 244886.2261
A51: 40 | B51: 2143.220589 | C51: 1989.700587 | D51: 153.5200019 | E51: 244732.7061
A52: 41 | B52: 2143.220589 | C52: 1988.453237 | D52: 154.7673519 | E52: 244577.9387
A53: 42 | B53: 2143.220589 | C53: 1987.195752 | D53: 156.0248366 | E53: 244421.9139
A54: 43 | B54: 2143.220589 | C54: 1985.92805 | D54: 157.2925384 | E54: 244264.6214
A55: 44 | B55: 2143.220589 | C55: 1984.650049 | D55: 158.5705403 | E55: 244106.0508
A56: 45 | B56: 2143.220589 | C56: 1983.361663 | D56: 159.858926 | E56: 243946.1919
A57: 46 | B57: 2143.220589 | C57: 1982.062809 | D57: 161.1577797 | E57: 243785.0341
A58: 47 | B58: 2143.220589 | C58: 1980.753402 | D58: 162.4671867 | E58: 243622.5669
A59: 48 | B59: 2143.220589 | C59: 1979.433356 | D59: 163.7872326 | E59: 243458.7797
A60: 49 | B60: 2143.220589 | C60: 1978.102585 | D60: 165.1180039 | E60: 243293.6617
A61: 50 | B61: 2143.220589 | C61: 1976.761001 | D61: 166.4595876 | E61: 243127.2021
A62: 51 | B62: 2143.220589 | C62: 1975.408517 | D62: 167.8120718 | E62: 242959.39
A63: 52 | B63: 2143.220589 | C63: 1974.045044 | D63: 169.1755449 | E63: 242790.2145
A64: 53 | B64: 2143.220589 | C64: 1972.670493 | D64: 170.5500962 | E64: 242619.6644
A65: 54 | B65: 2143.220589 | C65: 1971.284773 | D65: 171.9358157 | E65: 242447.7286
A66: 55 | B66: 2143.220589 | C66: 1969.887795 | D66: 173.3327942 | E66: 242274.3958
A67: 56 | B67: 2143.220589 | C67: 1968.479466 | D67: 174.7411232 | E67: 242099.6547
A68: 57 | B68: 2143.220589 | C68: 1967.059694 | D68: 176.1608948 | E68: 241923.4938
A69: 58 | B69: 2143.220589 | C69: 1965.628387 | D69: 177.592202 | E69: 241745.9016
A70: 59 | B70: 2143.220589 | C70: 1964.18545 | D70: 179.0351387 | E70: 241566.8664
A71: 60 | B71: 2143.220589 | C71: 1962.73079 | D71: 180.4897992 | E71: 241386.3766
A72: 61 | B72: 2143.220589 | C72: 1961.26431 | D72: 181.9562788 | E72: 241204.4204
A73: 62 | B73: 2143.220589 | C73: 1959.785915 | D73: 183.4346736 | E73: 241020.9857
A74: 63 | B74: 2143.220589 | C74: 1958.295509 | D74: 184.9250803 | E74: 240836.0606
A75: 64 | B75: 2143.220589 | C75: 1956.792992 | D75: 186.4275966 | E75: 240649.633
A76: 65 | B76: 2143.220589 | C76: 1955.278268 | D76: 187.9423208 | E76: 240461.6907
A77: 66 | B77: =-B$8 -> 2143.220589 | C77: =E76*B$4 -> 1953.751237 | D77: =B77-C77 -> 189.4693522 | E77: =E76-D77 -> 240272.2213
A78: 67 | B78: 2143.220589 | C78: 1952.211798 | D78: 191.0087906 | E78: 240081.2125
A79: 68 | B79: 2143.220589 | C79: 1950.659852 | D79: 192.5607371 | E79: 239888.6518
A80: 69 | B80: 2143.220589 | C80: 1949.095296 | D80: 194.1252931 | E80: 239694.5265
A81: 70 | B81: 2143.220589 | C81: 1947.518028 | D81: 195.7025611 | E81: 239498.8239
A82: 71 | B82: 2143.220589 | C82: 1945.927945 | D82: 197.2926444 | E82: 239301.5313
A83: 72 | B83: 2143.220589 | C83: 1944.324942 | D83: 198.8956471 | E83: 239102.6357
A84: 73 | B84: 2143.220589 | C84: 1942.708915 | D84: 200.5116742 | E84: 238902.124
A85: 74 | B85: 2143.220589 | C85: 1941.079757 | D85: 202.1408316 | E85: 238699.9831
A86: 75 | B86: 2143.220589 | C86: 1939.437363 | D86: 203.7832258 | E86: 238496.1999
A87: 76 | B87: 2143.220589 | C87: 1937.781624 | D87: 205.4389646 | E87: 238290.761
A88: 77 | B88: 2143.220589 | C88: 1936.112433 | D88: 207.1081561 | E88: 238083.6528
A89: 78 | B89: 2143.220589 | C89: 1934.429679 | D89: 208.7909099 | E89: 237874.8619
A90: 79 | B90: 2143.220589 | C90: 1932.733253 | D90: 210.4873361 | E90: 237664.3746
A91: 80 | B91: 2143.220589 | C91: 1931.023043 | D91: 212.1975457 | E91: 237452.177
A92: 81 | B92: 2143.220589 | C92: 1929.298938 | D92: 213.9216507 | E92: 237238.2554
A93: 82 | B93: 2143.220589 | C93: 1927.560825 | D93: 215.6597641 | E93: 237022.5956
A94: 83 | B94: 2143.220589 | C94: 1925.808589 | D94: 217.4119997 | E94: 236805.1836
A95: 84 | B95: 2143.220589 | C95: 1924.042117 | D95: 219.1784722 | E95: 236586.0051
A96: 85 | B96: 2143.220589 | C96: 1922.261292 | D96: 220.9592973 | E96: 236365.0458
A97: 86 | B97: 2143.220589 | C97: 1920.465997 | D97: 222.7545916 | E97: 236142.2912
A98: 87 | B98: 2143.220589 | C98: 1918.656116 | D98: 224.5644726 | E98: 235917.7268
A99: 88 | B99: 2143.220589 | C99: 1916.83153 | D99: 226.389059 | E99: 235691.3377
A100: 89 | B100: 2143.220589 | C100: 1914.992119 | D100: 228.2284701 | E100: 235463.1092
A101: 90 | B101: 2143.220589 | C101: 1913.137763 | D101: 230.0828264 | E101: 235233.0264
A102: 91 | B102: 2143.220589 | C102: 1911.26834 | D102: 231.9522494 | E102: 235001.0742
A103: 92 | B103: 2143.220589 | C103: 1909.383728 | D103: 233.8368614 | E103: 234767.2373
A104: 93 | B104: 2143.220589 | C104: 1907.483803 | D104: 235.7367859 | E104: 234531.5005
A105: 94 | B105: 2143.220589 | C105: 1905.568442 | D105: 237.6521473 | E105: 234293.8484
A106: 95 | B106: 2143.220589 | C106: 1903.637518 | D106: 239.583071 | E106: 234054.2653
A107: 96 | B107: 2143.220589 | C107: 1901.690906 | D107: 241.5296834 | E107: 233812.7356
A108: 97 | B108: 2143.220589 | C108: 1899.728477 | D108: 243.4921121 | E108: 233569.2435
A109: 98 | B109: 2143.220589 | C109: 1897.750103 | D109: 245.4704855 | E109: 233323.773
A110: 99 | B110: 2143.220589 | C110: 1895.755656 | D110: 247.4649332 | E110: 233076.3081
A111: 100 | B111: 2143.220589 | C111: 1893.745003 | D111: 249.4755858 | E111: 232826.8325
A112: 101 | B112: 2143.220589 | C112: 1891.718014 | D112: 251.5025749 | E112: 232575.3299
A113: 102 | B113: 2143.220589 | C113: 1889.674556 | D113: 253.5460334 | E113: 232321.7839
A114: 103 | B114: 2143.220589 | C114: 1887.614494 | D114: 255.6060949 | E114: 232066.1778
A115: 104 | B115: 2143.220589 | C115: 1885.537695 | D115: 257.6828944 | E115: 231808.4949
A116: 105 | B116: 2143.220589 | C116: 1883.444021 | D116: 259.7765679 | E116: 231548.7183
A117: 106 | B117: 2143.220589 | C117: 1881.333336 | D117: 261.8872525 | E117: 231286.8311
A118: 107 | B118: 2143.220589 | C118: 1879.205502 | D118: 264.0150865 | E118: 231022.816
A119: 108 | B119: 2143.220589 | C119: 1877.06038 | D119: 266.160209 | E119: 230756.6558
A120: 109 | B120: 2143.220589 | C120: 1874.897828 | D120: 268.3227607 | E120: 230488.333
A121: 110 | B121: 2143.220589 | C121: 1872.717706 | D121: 270.5028832 | E121: 230217.8301
A122: 111 | B122: 2143.220589 | C122: 1870.51987 | D122: 272.7007191 | E122: 229945.1294
A123: 112 | B123: 2143.220589 | C123: 1868.304177 | D123: 274.9164124 | E123: 229670.213
A124: 113 | B124: 2143.220589 | C124: 1866.070481 | D124: 277.1501083 | E124: 229393.0629
A125: 114 | B125: 2143.220589 | C125: 1863.818636 | D125: 279.4019529 | E125: 229113.6609
A126: 115 | B126: 2143.220589 | C126: 1861.548495 | D126: 281.6720938 | E126: 228831.9888
A127: 116 | B127: 2143.220589 | C127: 1859.259909 | D127: 283.9606795 | E127: 228548.0282
A128: 117 | B128: 2143.220589 | C128: 1856.952729 | D128: 286.2678601 | E128: 228261.7603
A129: 118 | B129: 2143.220589 | C129: 1854.626803 | D129: 288.5937864 | E129: 227973.1665
A130: 119 | B130: 2143.220589 | C130: 1852.281978 | D130: 290.9386109 | E130: 227682.2279
A131: 120 | B131: 2143.220589 | C131: 1849.918102 | D131: 293.3024872 | E131: 227388.9254
A132: 121 | B132: 2143.220589 | C132: 1847.535019 | D132: 295.6855699 | E132: 227093.2399
A133: 122 | B133: 2143.220589 | C133: 1845.132574 | D133: 298.0880151 | E133: 226795.1518
A134: 123 | B134: 2143.220589 | C134: 1842.710609 | D134: 300.5099802 | E134: 226494.6419
A135: 124 | B135: 2143.220589 | C135: 1840.268965 | D135: 302.9516238 | E135: 226191.6902
A136: 125 | B136: 2143.220589 | C136: 1837.807483 | D136: 305.4131058 | E136: 225886.2771
A137: 126 | B137: 2143.220589 | C137: 1835.326002 | D137: 307.8945873 | E137: 225578.3825
A138: 127 | B138: 2143.220589 | C138: 1832.824358 | D138: 310.3962308 | E138: 225267.9863
A139: 128 | B139: 2143.220589 | C139: 1830.302389 | D139: 312.9182002 | E139: 224955.0681
A140: 129 | B140: 2143.220589 | C140: 1827.759928 | D140: 315.4606605 | E140: 224639.6075
A141: 130 | B141: =-B$8 -> 2143.220589 | C141: =E140*B$4 -> 1825.196811 | D141: =B141-C141 -> 318.0237784 | E141: =E140-D141 -> 224321.5837
A142: 131 | B142: 2143.220589 | C142: 1822.612867 | D142: 320.6077216 | E142: 224000.976
A143: 132 | B143: 2143.220589 | C143: 1820.00793 | D143: 323.2126593 | E143: 223677.7633
A144: 133 | B144: 2143.220589 | C144: 1817.381827 | D144: 325.8387622 | E144: 223351.9245
A145: 134 | B145: 2143.220589 | C145: 1814.734387 | D145: 328.4862021 | E145: 223023.4383
A146: 135 | B146: 2143.220589 | C146: 1812.065436 | D146: 331.1551525 | E146: 222692.2832
A147: 136 | B147: 2143.220589 | C147: 1809.374801 | D147: 333.8457881 | E147: 222358.4374
A148: 137 | B148: 2143.220589 | C148: 1806.662304 | D148: 336.5582852 | E148: 222021.8791
A149: 138 | B149: 2143.220589 | C149: 1803.927768 | D149: 339.2928212 | E149: 221682.5863
A150: 139 | B150: 2143.220589 | C150: 1801.171014 | D150: 342.0495754 | E150: 221340.5367
A151: 140 | B151: 2143.220589 | C151: 1798.391861 | D151: 344.8287282 | E151: 220995.708
A152: 141 | B152: 2143.220589 | C152: 1795.590127 | D152: 347.6304616 | E152: 220648.0775
A153: 142 | B153: 2143.220589 | C153: 1792.76563 | D153: 350.4549591 | E153: 220297.6226
A154: 143 | B154: 2143.220589 | C154: 1789.918183 | D154: 353.3024057 | E154: 219944.3202
A155: 144 | B155: 2143.220589 | C155: 1787.047601 | D155: 356.1729877 | E155: 219588.1472
A156: 145 | B156: 2143.220589 | C156: 1784.153696 | D156: 359.0668932 | E156: 219229.0803
A157: 146 | B157: 2143.220589 | C157: 1781.236277 | D157: 361.9843118 | E157: 218867.096
A158: 147 | B158: 2143.220589 | C158: 1778.295155 | D158: 364.9254343 | E158: 218502.1705
A159: 148 | B159: 2143.220589 | C159: 1775.330136 | D159: 367.8904534 | E159: 218134.2801
A160: 149 | B160: 2143.220589 | C160: 1772.341026 | D160: 370.8795634 | E160: 217763.4005
A161: 150 | B161: 2143.220589 | C161: 1769.327629 | D161: 373.8929598 | E161: 217389.5075
A162: 151 | B162: 2143.220589 | C162: 1766.289749 | D162: 376.9308401 | E162: 217012.5767
A163: 152 | B163: 2143.220589 | C163: 1763.227186 | D163: 379.9934032 | E163: 216632.5833
A164: 153 | B164: 2143.220589 | C164: 1760.139739 | D164: 383.0808496 | E164: 216249.5025
A165: 154 | B165: 2143.220589 | C165: 1757.027207 | D165: 386.1933815 | E165: 215863.3091
A166: 155 | B166: 2143.220589 | C166: 1753.889386 | D166: 389.3312027 | E166: 215473.9779
A167: 156 | B167: 2143.220589 | C167: 1750.72607 | D167: 392.4945187 | E167: 215081.4834
A168: 157 | B168: 2143.220589 | C168: 1747.537052 | D168: 395.6835367 | E168: 214685.7998
A169: 158 | B169: 2143.220589 | C169: 1744.322123 | D169: 398.8984655 | E169: 214286.9013
A170: 159 | B170: 2143.220589 | C170: 1741.081073 | D170: 402.1395155 | E170: 213884.7618
A171: 160 | B171: 2143.220589 | C171: 1737.81369 | D171: 405.406899 | E171: 213479.3549
A172: 161 | B172: 2143.220589 | C172: 1734.519759 | D172: 408.7008301 | E172: 213070.6541
A173: 162 | B173: 2143.220589 | C173: 1731.199065 | D173: 412.0215243 | E173: 212658.6326
A174: 163 | B174: 2143.220589 | C174: 1727.85139 | D174: 415.3691992 | E174: 212243.2634
A175: 164 | B175: 2143.220589 | C175: 1724.476515 | D175: 418.744074 | E175: 211824.5193
A176: 165 | B176: 2143.220589 | C176: 1721.074219 | D176: 422.1463696 | E176: 211402.3729
A177: 166 | B177: 2143.220589 | C177: 1717.64428 | D177: 425.5763088 | E177: 210976.7966
A178: 167 | B178: 2143.220589 | C178: 1714.186473 | D178: 429.0341163 | E178: 210547.7625
A179: 168 | B179: 2143.220589 | C179: 1710.70057 | D179: 432.5200185 | E179: 210115.2425
A180: 169 | B180: 2143.220589 | C180: 1707.186345 | D180: 436.0342437 | E180: 209679.2082
A181: 170 | B181: 2143.220589 | C181: 1703.643567 | D181: 439.5770219 | E181: 209239.6312
A182: 171 | B182: 2143.220589 | C182: 1700.072004 | D182: 443.1485852 | E182: 208796.4826
A183: 172 | B183: 2143.220589 | C183: 1696.471421 | D183: 446.7491675 | E183: 208349.7335
A184: 173 | B184: 2143.220589 | C184: 1692.841584 | D184: 450.3790045 | E184: 207899.3545
A185: 174 | B185: 2143.220589 | C185: 1689.182255 | D185: 454.0383339 | E185: 207445.3161
A186: 175 | B186: 2143.220589 | C186: 1685.493194 | D186: 457.7273953 | E186: 206987.5887
A187: 176 | B187: 2143.220589 | C187: 1681.774159 | D187: 461.4464304 | E187: 206526.1423
A188: 177 | B188: 2143.220589 | C188: 1678.024906 | D188: 465.1956827 | E188: 206060.9466
A189: 178 | B189: 2143.220589 | C189: 1674.245191 | D189: 468.9753976 | E189: 205591.9712
A190: 179 | B190: 2143.220589 | C190: 1670.434766 | D190: 472.7858227 | E190: 205119.1854
A191: 180 | B191: 2143.220589 | C191: 1666.593381 | D191: 476.6272075 | E191: 204642.5582
A192: 181 | B192: 2143.220589 | C192: 1662.720785 | D192: 480.4998036 | E192: 204162.0584
A193: 182 | B193: 2143.220589 | C193: 1658.816724 | D193: 484.4038645 | E193: 203677.6545
A194: 183 | B194: 2143.220589 | C194: 1654.880943 | D194: 488.3396459 | E194: 203189.3149
A195: 184 | B195: 2143.220589 | C195: 1650.913183 | D195: 492.3074055 | E195: 202697.0075
A196: 185 | B196: 2143.220589 | C196: 1646.913186 | D196: 496.3074032 | E196: 202200.7001
A197: 186 | B197: 2143.220589 | C197: 1642.880688 | D197: 500.3399008 | E197: 201700.3602
A198: 187 | B198: 2143.220589 | C198: 1638.815426 | D198: 504.4051625 | E198: 201195.955
A199: 188 | B199: 2143.220589 | C199: 1634.717134 | D199: 508.5034544 | E199: 200687.4516
A200: 189 | B200: 2143.220589 | C200: 1630.585544 | D200: 512.635045 | E200: 200174.8165
A201: 190 | B201: 2143.220589 | C201: 1626.420384 | D201: 516.8002048 | E201: 199658.0163
... 170 more rows

Sheet AVERAGEIF
A1: Date | B1: Invoice # | C1: Name | D1: Product | E1: UnitsSold | F1: Sales
A2: 2009-07-06 | B2: 1001 | C2: Christine | D2: Compressor 5 | E2: 2 | F2: 10800 | H2: SalesRep | I2: Average Sales
A3: 2009-07-06 | B3: 1002 | C3: Monique | D3: Compressor 3 | E3: 1 | F3: 1525 | H3: Cynthia
A4: 2009-07-06 | B4: 1003 | C4: Monique | D4: Compressor 8 | E4: 1 | F4: 2480 | H4: Yishak
A5: 2009-07-07 | B5: 1004 | C5: Jean | D5: Compressor 3 | E5: 1 | F5: 1525 | H5: Wendy
A6: 2009-07-07 | B6: 1005 | C6: Wendy | D6: Compressor 1 | E6: 3 | F6: 1650 | H6: Maurice
A7: 2009-07-07 | B7: 1006 | C7: Jessica | D7: Compressor 2 | E7: 2 | F7: 24000 | H7: Monique
A8: 2009-07-07 | B8: 1007 | C8: Shegaw | D8: Compressor 8 | E8: 2 | F8: 4960 | H8: Amburg
A9: 2009-07-07 | B9: 1008 | C9: Amburg | D9: Compressor 8 | E9: 1 | F9: 2480 | H9: Donna
A10: 2009-07-07 | B10: 1009 | C10: Wendy | D10: Compressor 8 | E10: 2 | F10: 4960 | H10: Tawnya
A11: 2009-07-08 | B11: 1010 | C11: Shirley | D11: Compressor 4 | E11: 1 | F11: 6000 | H11: Shirley
A12: 2009-07-08 | B12: 1011 | C12: Mykola | D12: Compressor 4 | E12: 1 | F12: 6000 | H12: Sarah
A13: 2009-07-08 | B13: 1012 | C13: Maurice | D13: Compressor 2 | E13: 1 | F13: 12000 | H13: Marsha
A14: 2009-07-08 | B14: 1013 | C14: Dawn | D14: Compressor 1 | E14: 1 | F14: 550 | H14: Jean
A15: 2009-07-09 | B15: 1014 | C15: Sreysros | D15: Compressor 2 | E15: 1 | F15: 12000 | H15: Mykola
A16: 2009-07-09 | B16: 1015 | C16: Mykola | D16: Compressor 6 | E16: 1 | F16: 450 | H16: Christine
A17: 2009-07-09 | B17: 1016 | C17: Mykola | D17: Compressor 1 | E17: 1 | F17: 550 | H17: Sreysros
A18: 2009-07-09 | B18: 1017 | C18: Cynthia | D18: Compressor 7 | E18: 1 | F18: 25000 | H18: Julie
A19: 2009-07-10 | B19: 1018 | C19: Mykola | D19: Compressor 4 | E19: 1 | F19: 6000 | H19: Zemmia
A20: 2009-07-10 | B20: 1019 | C20: Alamzeb | D20: Compressor 4 | E20: 2 | F20: 12000 | H20: Dawn
A21: 2009-07-10 | B21: 1020 | C21: Dawn | D21: Compressor 5 | E21: 1 | F21: 5400 | H21: Shegaw
A22: 2009-07-11 | B22: 1021 | C22: Sreysros | D22: Compressor 5 | E22: 1 | F22: 5400 | H22: Alamzeb
A23: 2009-07-11 | B23: 1022 | C23: Tawnya | D23: Compressor 3 | E23: 1 | F23: 1525 | H23: Jessica
A24: 2009-07-12 | B24: 1023 | C24: Sarah | D24: Compressor 1 | E24: 1 | F24: 550
A25: 2009-07-12 | B25: 1024 | C25: Cynthia | D25: Compressor 3 | E25: 2 | F25: 3050
A26: 2009-07-12 | B26: 1025 | C26: Tawnya | D26: Compressor 5 | E26: 1 | F26: 5400
A27: 2009-07-13 | B27: 1026 | C27: Mykola | D27: Compressor 1 | E27: 3 | F27: 1650
A28: 2009-07-13 | B28: 1027 | C28: Zemmia | D28: Compressor 3 | E28: 1 | F28: 1525
A29: 2009-07-14 | B29: 1028 | C29: Donna | D29: Compressor 4 | E29: 1 | F29: 6000
A30: 2009-07-14 | B30: 1029 | C30: Cynthia | D30: Compressor 7 | E30: 1 | F30: 25000
A31: 2009-07-14 | B31: 1030 | C31: Maurice | D31: Compressor 6 | E31: 1 | F31: 450
A32: 2009-07-15 | B32: 1031 | C32: Sarah | D32: Compressor 6 | E32: 1 | F32: 450
A33: 2009-07-15 | B33: 1032 | C33: Mykola | D33: Compressor 8 | E33: 2 | F33: 4960
A34: 2009-07-16 | B34: 1033 | C34: Amburg | D34: Compressor 7 | E34: 1 | F34: 25000
A35: 2009-07-16 | B35: 1034 | C35: Sreysros | D35: Compressor 2 | E35: 1 | F35: 12000
A36: 2009-07-17 | B36: 1035 | C36: Donna | D36: Compressor 7 | E36: 1 | F36: 25000
A37: 2009-07-17 | B37: 1036 | C37: Sreysros | D37: Compressor 6 | E37: 1 | F37: 450
A38: 2009-07-17 | B38: 1037 | C38: Wendy | D38: Compressor 3 | E38: 1 | F38: 1525
A39: 2009-07-17 | B39: 1038 | C39: Maurice | D39: Compressor 6 | E39: 2 | F39: 900
A40: 2009-07-17 | B40: 1039 | C40: Tawnya | D40: Compressor 4 | E40: 2 | F40: 12000
A41: 2009-07-17 | B41: 1040 | C41: Cynthia | D41: Compressor 7 | E41: 2 | F41: 50000
A42: 2009-07-18 | B42: 1041 | C42: Amburg | D42: Compressor 8 | E42: 1 | F42: 2480
A43: 2009-07-18 | B43: 1042 | C43: Jean | D43: Compressor 8 | E43: 1 | F43: 2480
A44: 2009-07-19 | B44: 1043 | C44: Julie | D44: Compressor 3 | E44: 1 | F44: 1525
A45: 2009-07-19 | B45: 1044 | C45: Sreysros | D45: Compressor 1 | E45: 2 | F45: 1100
A46: 2009-07-19 | B46: 1045 | C46: Jessica | D46: Compressor 7 | E46: 2 | F46: 50000
A47: 2009-07-19 | B47: 1046 | C47: Yishak | D47: Compressor 1 | E47: 1 | F47: 550
A48: 2009-07-20 | B48: 1047 | C48: Sarah | D48: Compressor 5 | E48: 1 | F48: 5400
A49: 2009-07-20 | B49: 1048 | C49: Maurice | D49: Compressor 2 | E49: 1 | F49: 12000
A50: 2009-07-20 | B50: 1049 | C50: Shirley | D50: Compressor 6 | E50: 3 | F50: 1350
A51: 2009-07-21 | B51: 1050 | C51: Zemmia | D51: Compressor 3 | E51: 2 | F51: 3050
A52: 2009-07-21 | B52: 1051 | C52: Sreysros | D52: Compressor 1 | E52: 1 | F52: 550
A53: 2009-07-22 | B53: 1052 | C53: Dawn | D53: Compressor 6 | E53: 1 | F53: 450
A54: 2009-07-22 | B54: 1053 | C54: Jean | D54: Compressor 5 | E54: 2 | F54: 10800
A55: 2009-07-22 | B55: 1054 | C55: Maurice | D55: Compressor 5 | E55: 1 | F55: 5400
A56: 2009-07-23 | B56: 1055 | C56: Sarah | D56: Compressor 4 | E56: 1 | F56: 6000
A57: 2009-07-23 | B57: 1056 | C57: Shegaw | D57: Compressor 3 | E57: 1 | F57: 1525
A58: 2009-07-24 | B58: 1057 | C58: Wendy | D58: Compressor 3 | E58: 2 | F58: 3050
A59: 2009-07-24 | B59: 1058 | C59: Shirley | D59: Compressor 5 | E59: 3 | F59: 16200
A60: 2009-07-24 | B60: 1059 | C60: Christine | D60: Compressor 5 | E60: 2 | F60: 10800
A61: 2009-07-25 | B61: 1060 | C61: Jean | D61: Compressor 7 | E61: 1 | F61: 25000
A62: 2009-07-26 | B62: 1061 | C62: Tawnya | D62: Compressor 5 | E62: 1 | F62: 5400
A63: 2009-07-26 | B63: 1062 | C63: Shegaw | D63: Compressor 3 | E63: 1 | F63: 1525
A64: 2009-07-26 | B64: 1063 | C64: Julie | D64: Compressor 3 | E64: 1 | F64: 1525
A65: 2009-07-27 | B65: 1064 | C65: Monique | D65: Compressor 5 | E65: 1 | F65: 5400
A66: 2009-07-27 | B66: 1065 | C66: Sarah | D66: Compressor 2 | E66: 1 | F66: 12000
A67: 2009-07-27 | B67: 1066 | C67: Shirley | D67: Compressor 3 | E67: 1 | F67: 1525
A68: 2009-07-27 | B68: 1067 | C68: Sreysros | D68: Compressor 4 | E68: 3 | F68: 18000
A69: 2009-07-27 | B69: 1068 | C69: Cynthia | D69: Compressor 7 | E69: 2 | F69: 50000
A70: 2009-07-27 | B70: 1069 | C70: Mykola | D70: Compressor 6 | E70: 2 | F70: 900
A71: 2009-07-28 | B71: 1070 | C71: Maurice | D71: Compressor 7 | E71: 1 | F71: 25000
A72: 2009-07-28 | B72: 1071 | C72: Julie | D72: Compressor 2 | E72: 2 | F72: 24000
A73: 2009-07-28 | B73: 1072 | C73: Amburg | D73: Compressor 8 | E73: 1 | F73: 2480
A74: 2009-07-29 | B74: 1073 | C74: Yishak | D74: Compressor 1 | E74: 2 | F74: 1100
A75: 2009-07-29 | B75: 1074 | C75: Amburg | D75: Compressor 6 | E75: 1 | F75: 450
A76: 2009-07-30 | B76: 1075 | C76: Shegaw | D76: Compressor 2 | E76: 1 | F76: 12000
A77: 2009-07-30 | B77: 1076 | C77: Yishak | D77: Compressor 7 | E77: 3 | F77: 75000
A78: 2009-07-30 | B78: 1077 | C78: Sreysros | D78: Compressor 8 | E78: 3 | F78: 7440
A79: 2009-07-30 | B79: 1078 | C79: Maurice | D79: Compressor 7 | E79: 1 | F79: 25000
A80: 2009-07-31 | B80: 1079 | C80: Donna | D80: Compressor 2 | E80: 1 | F80: 12000
A81: 2009-07-31 | B81: 1080 | C81: Sarah | D81: Compressor 1 | E81: 1 | F81: 550
A82: 2009-08-01 | B82: 1081 | C82: Mykola | D82: Compressor 5 | E82: 1 | F82: 5400
A83: 2009-08-01 | B83: 1082 | C83: Yishak | D83: Compressor 1 | E83: 2 | F83: 1100
A84: 2009-08-02 | B84: 1083 | C84: Amburg | D84: Compressor 6 | E84: 2 | F84: 900
A85: 2009-08-03 | B85: 1084 | C85: Cynthia | D85: Compressor 5 | E85: 1 | F85: 5400
A86: 2009-08-03 | B86: 1085 | C86: Monique | D86: Compressor 6 | E86: 1 | F86: 450
A87: 2009-08-03 | B87: 1086 | C87: Maurice | D87: Compressor 8 | E87: 1 | F87: 2480
A88: 2009-08-03 | B88: 1087 | C88: Shirley | D88: Compressor 1 | E88: 1 | F88: 550
A89: 2009-08-03 | B89: 1088 | C89: Tawnya | D89: Compressor 6 | E89: 1 | F89: 450
A90: 2009-08-03 | B90: 1089 | C90: Mykola | D90: Compressor 8 | E90: 2 | F90: 4960
A91: 2009-08-04 | B91: 1090 | C91: Julie | D91: Compressor 6 | E91: 1 | F91: 450
A92: 2009-08-04 | B92: 1091 | C92: Julie | D92: Compressor 5 | E92: 1 | F92: 5400
A93: 2009-08-05 | B93: 1092 | C93: Sreysros | D93: Compressor 7 | E93: 1 | F93: 25000
A94: 2009-08-06 | B94: 1093 | C94: Julie | D94: Compressor 1 | E94: 1 | F94: 550
A95: 2009-08-06 | B95: 1094 | C95: Sarah | D95: Compressor 6 | E95: 2 | F95: 900
A96: 2009-08-06 | B96: 1095 | C96: Dawn | D96: Compressor 1 | E96: 1 | F96: 550
A97: 2009-08-06 | B97: 1096 | C97: Jessica | D97: Compressor 6 | E97: 1 | F97: 450
A98: 2009-08-06 | B98: 1097 | C98: Maurice | D98: Compressor 7 | E98: 1 | F98: 25000
A99: 2009-08-06 | B99: 1098 | C99: Shirley | D99: Compressor 1 | E99: 2 | F99: 1100
A100: 2009-08-07 | B100: 1099 | C100: Christine | D100: Compressor 6 | E100: 1 | F100: 450
A101: 2009-08-07 | B101: 1100 | C101: Dawn | D101: Compressor 4 | E101: 1 | F101: 6000
A102: 2009-08-07 | B102: 1101 | C102: Yishak | D102: Compressor 6 | E102: 1 | F102: 450
A103: 2009-08-07 | B103: 1102 | C103: Jessica | D103: Compressor 3 | E103: 1 | F103: 1525
A104: 2009-08-08 | B104: 1103 | C104: Cynthia | D104: Compressor 8 | E104: 2 | F104: 4960
A105: 2009-08-08 | B105: 1104 | C105: Julie | D105: Compressor 2 | E105: 1 | F105: 12000
A106: 2009-08-08 | B106: 1105 | C106: Tawnya | D106: Compressor 6 | E106: 1 | F106: 450
A107: 2009-08-08 | B107: 1106 | C107: Shegaw | D107: Compressor 2 | E107: 3 | F107: 36000
A108: 2009-08-08 | B108: 1107 | C108: Zemmia | D108: Compressor 8 | E108: 1 | F108: 2480
A109: 2009-08-09 | B109: 1108 | C109: Sarah | D109: Compressor 3 | E109: 1 | F109: 1525
A110: 2009-08-09 | B110: 1109 | C110: Shegaw | D110: Compressor 6 | E110: 1 | F110: 450
A111: 2009-08-09 | B111: 1110 | C111: Christine | D111: Compressor 3 | E111: 1 | F111: 1525
A112: 2009-08-09 | B112: 1111 | C112: Mykola | D112: Compressor 3 | E112: 1 | F112: 1525
A113: 2009-08-09 | B113: 1112 | C113: Tawnya | D113: Compressor 1 | E113: 1 | F113: 550
A114: 2009-08-09 | B114: 1113 | C114: Cynthia | D114: Compressor 5 | E114: 1 | F114: 5400
A115: 2009-08-10 | B115: 1114 | C115: Sarah | D115: Compressor 8 | E115: 1 | F115: 2480
A116: 2009-08-10 | B116: 1115 | C116: Dawn | D116: Compressor 7 | E116: 1 | F116: 25000
A117: 2009-08-10 | B117: 1116 | C117: Marsha | D117: Compressor 3 | E117: 1 | F117: 1525
A118: 2009-08-10 | B118: 1117 | C118: Wendy | D118: Compressor 3 | E118: 1 | F118: 1525
A119: 2009-08-10 | B119: 1118 | C119: Monique | D119: Compressor 7 | E119: 1 | F119: 25000
A120: 2009-08-11 | B120: 1119 | C120: Dawn | D120: Compressor 7 | E120: 1 | F120: 25000
A121: 2009-08-11 | B121: 1120 | C121: Wendy | D121: Compressor 8 | E121: 1 | F121: 2480
A122: 2009-08-11 | B122: 1121 | C122: Dawn | D122: Compressor 5 | E122: 1 | F122: 5400
A123: 2009-08-11 | B123: 1122 | C123: Wendy | D123: Compressor 4 | E123: 1 | F123: 6000
A124: 2009-08-12 | B124: 1123 | C124: Maurice | D124: Compressor 6 | E124: 1 | F124: 450
A125: 2009-08-12 | B125: 1124 | C125: Dawn | D125: Compressor 3 | E125: 1 | F125: 1525
A126: 2009-08-12 | B126: 1125 | C126: Monique | D126: Compressor 5 | E126: 2 | F126: 10800
A127: 2009-08-12 | B127: 1126 | C127: Sreysros | D127: Compressor 5 | E127: 1 | F127: 5400
A128: 2009-08-12 | B128: 1127 | C128: Wendy | D128: Compressor 7 | E128: 2 | F128: 50000
A129: 2009-08-13 | B129: 1128 | C129: Mykola | D129: Compressor 7 | E129: 3 | F129: 75000
A130: 2009-08-13 | B130: 1129 | C130: Jean | D130: Compressor 3 | E130: 3 | F130: 4575
A131: 2009-08-13 | B131: 1130 | C131: Christine | D131: Compressor 2 | E131: 1 | F131: 12000
A132: 2009-08-13 | B132: 1131 | C132: Alamzeb | D132: Compressor 1 | E132: 2 | F132: 1100
A133: 2009-08-13 | B133: 1132 | C133: Sarah | D133: Compressor 3 | E133: 1 | F133: 1525
A134: 2009-08-13 | B134: 1133 | C134: Alamzeb | D134: Compressor 5 | E134: 1 | F134: 5400
A135: 2009-08-14 | B135: 1134 | C135: Alamzeb | D135: Compressor 6 | E135: 3 | F135: 1350
A136: 2009-08-14 | B136: 1135 | C136: Jessica | D136: Compressor 8 | E136: 1 | F136: 2480
A137: 2009-08-14 | B137: 1136 | C137: Sarah | D137: Compressor 2 | E137: 1 | F137: 12000
A138: 2009-08-15 | B138: 1137 | C138: Zemmia | D138: Compressor 7 | E138: 2 | F138: 50000
A139: 2009-08-15 | B139: 1138 | C139: Shirley | D139: Compressor 6 | E139: 1 | F139: 450
A140: 2009-08-16 | B140: 1139 | C140: Donna | D140: Compressor 6 | E140: 1 | F140: 450
A141: 2009-08-16 | B141: 1140 | C141: Monique | D141: Compressor 4 | E141: 1 | F141: 6000
A142: 2009-08-16 | B142: 1141 | C142: Monique | D142: Compressor 6 | E142: 1 | F142: 450
A143: 2009-08-17 | B143: 1142 | C143: Julie | D143: Compressor 6 | E143: 2 | F143: 900
A144: 2009-08-17 | B144: 1143 | C144: Shirley | D144: Compressor 2 | E144: 1 | F144: 12000
A145: 2009-08-17 | B145: 1144 | C145: Amburg | D145: Compressor 7 | E145: 1 | F145: 25000
A146: 2009-08-17 | B146: 1145 | C146: Yishak | D146: Compressor 1 | E146: 3 | F146: 1650
A147: 2009-08-17 | B147: 1146 | C147: Christine | D147: Compressor 7 | E147: 2 | F147: 50000
A148: 2009-08-18 | B148: 1147 | C148: Monique | D148: Compressor 3 | E148: 1 | F148: 1525
A149: 2009-08-18 | B149: 1148 | C149: Tawnya | D149: Compressor 6 | E149: 1 | F149: 450
A150: 2009-08-18 | B150: 1149 | C150: Shegaw | D150: Compressor 4 | E150: 1 | F150: 6000
A151: 2009-08-18 | B151: 1150 | C151: Shegaw | D151: Compressor 6 | E151: 1 | F151: 450
A152: 2009-08-18 | B152: 1151 | C152: Jessica | D152: Compressor 5 | E152: 1 | F152: 5400
A153: 2009-08-19 | B153: 1152 | C153: Tawnya | D153: Compressor 6 | E153: 2 | F153: 900
A154: 2009-08-19 | B154: 1153 | C154: Dawn | D154: Compressor 4 | E154: 1 | F154: 6000
A155: 2009-08-19 | B155: 1154 | C155: Monique | D155: Compressor 3 | E155: 1 | F155: 1525
A156: 2009-08-19 | B156: 1155 | C156: Monique | D156: Compressor 5 | E156: 1 | F156: 5400
A157: 2009-08-20 | B157: 1156 | C157: Cynthia | D157: Compressor 3 | E157: 1 | F157: 1525
A158: 2009-08-20 | B158: 1157 | C158: Donna | D158: Compressor 7 | E158: 1 | F158: 25000
A159: 2009-08-20 | B159: 1158 | C159: Shirley | D159: Compressor 8 | E159: 1 | F159: 2480
A160: 2009-08-20 | B160: 1159 | C160: Tawnya | D160: Compressor 3 | E160: 2 | F160: 3050
A161: 2009-08-20 | B161: 1160 | C161: Sreysros | D161: Compressor 7 | E161: 2 | F161: 50000
A162: 2009-08-20 | B162: 1161 | C162: Marsha | D162: Compressor 7 | E162: 2 | F162: 50000
A163: 2009-08-21 | B163: 1162 | C163: Wendy | D163: Compressor 4 | E163: 1 | F163: 6000
A164: 2009-08-21 | B164: 1163 | C164: Christine | D164: Compressor 1 | E164: 3 | F164: 1650
A165: 2009-08-22 | B165: 1164 | C165: Alamzeb | D165: Compressor 2 | E165: 1 | F165: 12000
A166: 2009-08-22 | B166: 1165 | C166: Zemmia | D166: Compressor 7 | E166: 1 | F166: 25000
A167: 2009-08-22 | B167: 1166 | C167: Tawnya | D167: Compressor 8 | E167: 2 | F167: 4960
A168: 2009-08-22 | B168: 1167 | C168: Marsha | D168: Compressor 5 | E168: 1 | F168: 5400
A169: 2009-08-22 | B169: 1168 | C169: Donna | D169: Compressor 3 | E169: 1 | F169: 1525
A170: 2009-08-22 | B170: 1169 | C170: Sreysros | D170: Compressor 3 | E170: 1 | F170: 1525
A171: 2009-08-23 | B171: 1170 | C171: Christine | D171: Compressor 4 | E171: 1 | F171: 6000
A172: 2009-08-23 | B172: 1171 | C172: Zemmia | D172: Compressor 1 | E172: 3 | F172: 1650
A173: 2009-08-24 | B173: 1172 | C173: Sarah | D173: Compressor 7 | E173: 2 | F173: 50000
A174: 2009-08-24 | B174: 1173 | C174: Sarah | D174: Compressor 8 | E174: 1 | F174: 2480
A175: 2009-08-24 | B175: 1174 | C175: Yishak | D175: Compressor 1 | E175: 2 | F175: 1100
A176: 2009-08-24 | B176: 1175 | C176: Maurice | D176: Compressor 6 | E176: 2 | F176: 900
A177: 2009-08-24 | B177: 1176 | C177: Cynthia | D177: Compressor 1 | E177: 1 | F177: 550
A178: 2009-08-24 | B178: 1177 | C178: Zemmia | D178: Compressor 4 | E178: 2 | F178: 12000
A179: 2009-08-25 | B179: 1178 | C179: Mykola | D179: Compressor 3 | E179: 1 | F179: 1525
A180: 2009-08-25 | B180: 1179 | C180: Mykola | D180: Compressor 3 | E180: 2 | F180: 3050
A181: 2009-08-25 | B181: 1180 | C181: Jessica | D181: Compressor 8 | E181: 2 | F181: 4960
A182: 2009-08-25 | B182: 1181 | C182: Zemmia | D182: Compressor 8 | E182: 2 | F182: 4960
A183: 2009-08-25 | B183: 1182 | C183: Yishak | D183: Compressor 8 | E183: 1 | F183: 2480
A184: 2009-08-25 | B184: 1183 | C184: Mykola | D184: Compressor 6 | E184: 1 | F184: 450
A185: 2009-08-26 | B185: 1184 | C185: Wendy | D185: Compressor 8 | E185: 2 | F185: 4960
A186: 2009-08-26 | B186: 1185 | C186: Jean | D186: Compressor 3 | E186: 1 | F186: 1525
A187: 2009-08-26 | B187: 1186 | C187: Shegaw | D187: Compressor 2 | E187: 2 | F187: 24000
A188: 2009-08-26 | B188: 1187 | C188: Sreysros | D188: Compressor 5 | E188: 2 | F188: 10800
A189: 2009-08-27 | B189: 1188 | C189: Dawn | D189: Compressor 2 | E189: 1 | F189: 12000
A190: 2009-08-27 | B190: 1189 | C190: Yishak | D190: Compressor 5 | E190: 2 | F190: 10800
A191: 2009-08-28 | B191: 1190 | C191: Shegaw | D191: Compressor 2 | E191: 1 | F191: 12000
A192: 2009-08-28 | B192: 1191 | C192: Marsha | D192: Compressor 2 | E192: 2 | F192: 24000
A193: 2009-08-29 | B193: 1192 | C193: Alamzeb | D193: Compressor 4 | E193: 1 | F193: 6000
A194: 2009-08-29 | B194: 1193 | C194: Shegaw | D194: Compressor 7 | E194: 1 | F194: 25000
A195: 2009-08-29 | B195: 1194 | C195: Tawnya | D195: Compressor 1 | E195: 2 | F195: 1100
A196: 2009-08-29 | B196: 1195 | C196: Dawn | D196: Compressor 8 | E196: 1 | F196: 2480
A197: 2009-08-29 | B197: 1196 | C197: Christine | D197: Compressor 4 | E197: 2 | F197: 12000
A198: 2009-08-30 | B198: 1197 | C198: Wendy | D198: Compressor 6 | E198: 1 | F198: 450
A199: 2009-08-30 | B199: 1198 | C199: Tawnya | D199: Compressor 2 | E199: 1 | F199: 12000
A200: 2009-08-30 | B200: 1199 | C200: Maurice | D200: Compressor 2 | E200: 2 | F200: 24000
... 489 more rows

Sheet AVERAGEIF (2)
A1: Date | B1: Invoice # | C1: Name | D1: Product | E1: UnitsSold | F1: Sales
A2: 2009-07-06 | B2: 1001 | C2: Christine | D2: Compressor 5 | E2: 2 | F2: 10800 | H2: SalesRep | I2: Average Sales
A3: 2009-07-06 | B3: 1002 | C3: Monique | D3: Compressor 3 | E3: 1 | F3: 1525 | H3: Cynthia | I3: =AVERAGEIF($C$2:$C$689,H3,$F$2:$F$689) -> 11060.48387
A4: 2009-07-06 | B4: 1003 | C4: Monique | D4: Compressor 8 | E4: 1 | F4: 2480 | H4: Yishak | I4: =AVERAGEIF($C$2:$C$689,H4,$F$2:$F$689) -> 7601.8
A5: 2009-07-07 | B5: 1004 | C5: Jean | D5: Compressor 3 | E5: 1 | F5: 1525 | H5: Wendy | I5: 8607.027027
A6: 2009-07-07 | B6: 1005 | C6: Wendy | D6: Compressor 1 | E6: 3 | F6: 1650 | H6: Maurice | I6: 9749
A7: 2009-07-07 | B7: 1006 | C7: Jessica | D7: Compressor 2 | E7: 2 | F7: 24000 | H7: Monique | I7: 7141.538462
A8: 2009-07-07 | B8: 1007 | C8: Shegaw | D8: Compressor 8 | E8: 2 | F8: 4960 | H8: Amburg | I8: 8040.78125
A9: 2009-07-07 | B9: 1008 | C9: Amburg | D9: Compressor 8 | E9: 1 | F9: 2480 | H9: Donna | I9: 12830.14706
A10: 2009-07-07 | B10: 1009 | C10: Wendy | D10: Compressor 8 | E10: 2 | F10: 4960 | H10: Tawnya | I10: 7295.675676
A11: 2009-07-08 | B11: 1010 | C11: Shirley | D11: Compressor 4 | E11: 1 | F11: 6000 | H11: Shirley | I11: 13168.63636
A12: 2009-07-08 | B12: 1011 | C12: Mykola | D12: Compressor 4 | E12: 1 | F12: 6000 | H12: Sarah | I12: 11482.5
A13: 2009-07-08 | B13: 1012 | C13: Maurice | D13: Compressor 2 | E13: 1 | F13: 12000 | H13: Marsha | I13: 11506.52174
A14: 2009-07-08 | B14: 1013 | C14: Dawn | D14: Compressor 1 | E14: 1 | F14: 550 | H14: Jean | I14: 11351.02564
A15: 2009-07-09 | B15: 1014 | C15: Sreysros | D15: Compressor 2 | E15: 1 | F15: 12000 | H15: Mykola | I15: 7821
A16: 2009-07-09 | B16: 1015 | C16: Mykola | D16: Compressor 6 | E16: 1 | F16: 450 | H16: Christine | I16: 9169.423077
A17: 2009-07-09 | B17: 1016 | C17: Mykola | D17: Compressor 1 | E17: 1 | F17: 550 | H17: Sreysros | I17: 9335.833333
A18: 2009-07-09 | B18: 1017 | C18: Cynthia | D18: Compressor 7 | E18: 1 | F18: 25000 | H18: Julie | I18: 9595.46875
A19: 2009-07-10 | B19: 1018 | C19: Mykola | D19: Compressor 4 | E19: 1 | F19: 6000 | H19: Zemmia | I19: 9168.157895
A20: 2009-07-10 | B20: 1019 | C20: Alamzeb | D20: Compressor 4 | E20: 2 | F20: 12000 | H20: Dawn | I20: 9223.833333
A21: 2009-07-10 | B21: 1020 | C21: Dawn | D21: Compressor 5 | E21: 1 | F21: 5400 | H21: Shegaw | I21: 10719.65909
A22: 2009-07-11 | B22: 1021 | C22: Sreysros | D22: Compressor 5 | E22: 1 | F22: 5400 | H22: Alamzeb | I22: 6426.551724
A23: 2009-07-11 | B23: 1022 | C23: Tawnya | D23: Compressor 3 | E23: 1 | F23: 1525 | H23: Jessica | I23: 11774.48276
A24: 2009-07-12 | B24: 1023 | C24: Sarah | D24: Compressor 1 | E24: 1 | F24: 550
A25: 2009-07-12 | B25: 1024 | C25: Cynthia | D25: Compressor 3 | E25: 2 | F25: 3050
A26: 2009-07-12 | B26: 1025 | C26: Tawnya | D26: Compressor 5 | E26: 1 | F26: 5400
A27: 2009-07-13 | B27: 1026 | C27: Mykola | D27: Compressor 1 | E27: 3 | F27: 1650
A28: 2009-07-13 | B28: 1027 | C28: Zemmia | D28: Compressor 3 | E28: 1 | F28: 1525
A29: 2009-07-14 | B29: 1028 | C29: Donna | D29: Compressor 4 | E29: 1 | F29: 6000
A30: 2009-07-14 | B30: 1029 | C30: Cynthia | D30: Compressor 7 | E30: 1 | F30: 25000
A31: 2009-07-14 | B31: 1030 | C31: Maurice | D31: Compressor 6 | E31: 1 | F31: 450
A32: 2009-07-15 | B32: 1031 | C32: Sarah | D32: Compressor 6 | E32: 1 | F32: 450
A33: 2009-07-15 | B33: 1032 | C33: Mykola | D33: Compressor 8 | E33: 2 | F33: 4960
A34: 2009-07-16 | B34: 1033 | C34: Amburg | D34: Compressor 7 | E34: 1 | F34: 25000
A35: 2009-07-16 | B35: 1034 | C35: Sreysros | D35: Compressor 2 | E35: 1 | F35: 12000
A36: 2009-07-17 | B36: 1035 | C36: Donna | D36: Compressor 7 | E36: 1 | F36: 25000
A37: 2009-07-17 | B37: 1036 | C37: Sreysros | D37: Compressor 6 | E37: 1 | F37: 450
A38: 2009-07-17 | B38: 1037 | C38: Wendy | D38: Compressor 3 | E38: 1 | F38: 1525
A39: 2009-07-17 | B39: 1038 | C39: Maurice | D39: Compressor 6 | E39: 2 | F39: 900
A40: 2009-07-17 | B40: 1039 | C40: Tawnya | D40: Compressor 4 | E40: 2 | F40: 12000
A41: 2009-07-17 | B41: 1040 | C41: Cynthia | D41: Compressor 7 | E41: 2 | F41: 50000
A42: 2009-07-18 | B42: 1041 | C42: Amburg | D42: Compressor 8 | E42: 1 | F42: 2480
A43: 2009-07-18 | B43: 1042 | C43: Jean | D43: Compressor 8 | E43: 1 | F43: 2480
A44: 2009-07-19 | B44: 1043 | C44: Julie | D44: Compressor 3 | E44: 1 | F44: 1525
A45: 2009-07-19 | B45: 1044 | C45: Sreysros | D45: Compressor 1 | E45: 2 | F45: 1100
A46: 2009-07-19 | B46: 1045 | C46: Jessica | D46: Compressor 7 | E46: 2 | F46: 50000
A47: 2009-07-19 | B47: 1046 | C47: Yishak | D47: Compressor 1 | E47: 1 | F47: 550
A48: 2009-07-20 | B48: 1047 | C48: Sarah | D48: Compressor 5 | E48: 1 | F48: 5400
A49: 2009-07-20 | B49: 1048 | C49: Maurice | D49: Compressor 2 | E49: 1 | F49: 12000
A50: 2009-07-20 | B50: 1049 | C50: Shirley | D50: Compressor 6 | E50: 3 | F50: 1350
A51: 2009-07-21 | B51: 1050 | C51: Zemmia | D51: Compressor 3 | E51: 2 | F51: 3050
A52: 2009-07-21 | B52: 1051 | C52: Sreysros | D52: Compressor 1 | E52: 1 | F52: 550
A53: 2009-07-22 | B53: 1052 | C53: Dawn | D53: Compressor 6 | E53: 1 | F53: 450
A54: 2009-07-22 | B54: 1053 | C54: Jean | D54: Compressor 5 | E54: 2 | F54: 10800
A55: 2009-07-22 | B55: 1054 | C55: Maurice | D55: Compressor 5 | E55: 1 | F55: 5400
A56: 2009-07-23 | B56: 1055 | C56: Sarah | D56: Compressor 4 | E56: 1 | F56: 6000
A57: 2009-07-23 | B57: 1056 | C57: Shegaw | D57: Compressor 3 | E57: 1 | F57: 1525
A58: 2009-07-24 | B58: 1057 | C58: Wendy | D58: Compressor 3 | E58: 2 | F58: 3050
A59: 2009-07-24 | B59: 1058 | C59: Shirley | D59: Compressor 5 | E59: 3 | F59: 16200
A60: 2009-07-24 | B60: 1059 | C60: Christine | D60: Compressor 5 | E60: 2 | F60: 10800
A61: 2009-07-25 | B61: 1060 | C61: Jean | D61: Compressor 7 | E61: 1 | F61: 25000
A62: 2009-07-26 | B62: 1061 | C62: Tawnya | D62: Compressor 5 | E62: 1 | F62: 5400
A63: 2009-07-26 | B63: 1062 | C63: Shegaw | D63: Compressor 3 | E63: 1 | F63: 1525
A64: 2009-07-26 | B64: 1063 | C64: Julie | D64: Compressor 3 | E64: 1 | F64: 1525
A65: 2009-07-27 | B65: 1064 | C65: Monique | D65: Compressor 5 | E65: 1 | F65: 5400
A66: 2009-07-27 | B66: 1065 | C66: Sarah | D66: Compressor 2 | E66: 1 | F66: 12000
A67: 2009-07-27 | B67: 1066 | C67: Shirley | D67: Compressor 3 | E67: 1 | F67: 1525
A68: 2009-07-27 | B68: 1067 | C68: Sreysros | D68: Compressor 4 | E68: 3 | F68: 18000
A69: 2009-07-27 | B69: 1068 | C69: Cynthia | D69: Compressor 7 | E69: 2 | F69: 50000
A70: 2009-07-27 | B70: 1069 | C70: Mykola | D70: Compressor 6 | E70: 2 | F70: 900
A71: 2009-07-28 | B71: 1070 | C71: Maurice | D71: Compressor 7 | E71: 1 | F71: 25000
A72: 2009-07-28 | B72: 1071 | C72: Julie | D72: Compressor 2 | E72: 2 | F72: 24000
A73: 2009-07-28 | B73: 1072 | C73: Amburg | D73: Compressor 8 | E73: 1 | F73: 2480
A74: 2009-07-29 | B74: 1073 | C74: Yishak | D74: Compressor 1 | E74: 2 | F74: 1100
A75: 2009-07-29 | B75: 1074 | C75: Amburg | D75: Compressor 6 | E75: 1 | F75: 450
A76: 2009-07-30 | B76: 1075 | C76: Shegaw | D76: Compressor 2 | E76: 1 | F76: 12000
A77: 2009-07-30 | B77: 1076 | C77: Yishak | D77: Compressor 7 | E77: 3 | F77: 75000
A78: 2009-07-30 | B78: 1077 | C78: Sreysros | D78: Compressor 8 | E78: 3 | F78: 7440
A79: 2009-07-30 | B79: 1078 | C79: Maurice | D79: Compressor 7 | E79: 1 | F79: 25000
A80: 2009-07-31 | B80: 1079 | C80: Donna | D80: Compressor 2 | E80: 1 | F80: 12000
A81: 2009-07-31 | B81: 1080 | C81: Sarah | D81: Compressor 1 | E81: 1 | F81: 550
A82: 2009-08-01 | B82: 1081 | C82: Mykola | D82: Compressor 5 | E82: 1 | F82: 5400
A83: 2009-08-01 | B83: 1082 | C83: Yishak | D83: Compressor 1 | E83: 2 | F83: 1100
A84: 2009-08-02 | B84: 1083 | C84: Amburg | D84: Compressor 6 | E84: 2 | F84: 900
A85: 2009-08-03 | B85: 1084 | C85: Cynthia | D85: Compressor 5 | E85: 1 | F85: 5400
A86: 2009-08-03 | B86: 1085 | C86: Monique | D86: Compressor 6 | E86: 1 | F86: 450
A87: 2009-08-03 | B87: 1086 | C87: Maurice | D87: Compressor 8 | E87: 1 | F87: 2480
A88: 2009-08-03 | B88: 1087 | C88: Shirley | D88: Compressor 1 | E88: 1 | F88: 550
A89: 2009-08-03 | B89: 1088 | C89: Tawnya | D89: Compressor 6 | E89: 1 | F89: 450
A90: 2009-08-03 | B90: 1089 | C90: Mykola | D90: Compressor 8 | E90: 2 | F90: 4960
A91: 2009-08-04 | B91: 1090 | C91: Julie | D91: Compressor 6 | E91: 1 | F91: 450
A92: 2009-08-04 | B92: 1091 | C92: Julie | D92: Compressor 5 | E92: 1 | F92: 5400
A93: 2009-08-05 | B93: 1092 | C93: Sreysros | D93: Compressor 7 | E93: 1 | F93: 25000
A94: 2009-08-06 | B94: 1093 | C94: Julie | D94: Compressor 1 | E94: 1 | F94: 550
A95: 2009-08-06 | B95: 1094 | C95: Sarah | D95: Compressor 6 | E95: 2 | F95: 900
A96: 2009-08-06 | B96: 1095 | C96: Dawn | D96: Compressor 1 | E96: 1 | F96: 550
A97: 2009-08-06 | B97: 1096 | C97: Jessica | D97: Compressor 6 | E97: 1 | F97: 450
A98: 2009-08-06 | B98: 1097 | C98: Maurice | D98: Compressor 7 | E98: 1 | F98: 25000
A99: 2009-08-06 | B99: 1098 | C99: Shirley | D99: Compressor 1 | E99: 2 | F99: 1100
A100: 2009-08-07 | B100: 1099 | C100: Christine | D100: Compressor 6 | E100: 1 | F100: 450
A101: 2009-08-07 | B101: 1100 | C101: Dawn | D101: Compressor 4 | E101: 1 | F101: 6000
A102: 2009-08-07 | B102: 1101 | C102: Yishak | D102: Compressor 6 | E102: 1 | F102: 450
A103: 2009-08-07 | B103: 1102 | C103: Jessica | D103: Compressor 3 | E103: 1 | F103: 1525
A104: 2009-08-08 | B104: 1103 | C104: Cynthia | D104: Compressor 8 | E104: 2 | F104: 4960
A105: 2009-08-08 | B105: 1104 | C105: Julie | D105: Compressor 2 | E105: 1 | F105: 12000
A106: 2009-08-08 | B106: 1105 | C106: Tawnya | D106: Compressor 6 | E106: 1 | F106: 450
A107: 2009-08-08 | B107: 1106 | C107: Shegaw | D107: Compressor 2 | E107: 3 | F107: 36000
A108: 2009-08-08 | B108: 1107 | C108: Zemmia | D108: Compressor 8 | E108: 1 | F108: 2480
A109: 2009-08-09 | B109: 1108 | C109: Sarah | D109: Compressor 3 | E109: 1 | F109: 1525
A110: 2009-08-09 | B110: 1109 | C110: Shegaw | D110: Compressor 6 | E110: 1 | F110: 450
A111: 2009-08-09 | B111: 1110 | C111: Christine | D111: Compressor 3 | E111: 1 | F111: 1525
A112: 2009-08-09 | B112: 1111 | C112: Mykola | D112: Compressor 3 | E112: 1 | F112: 1525
A113: 2009-08-09 | B113: 1112 | C113: Tawnya | D113: Compressor 1 | E113: 1 | F113: 550
A114: 2009-08-09 | B114: 1113 | C114: Cynthia | D114: Compressor 5 | E114: 1 | F114: 5400
A115: 2009-08-10 | B115: 1114 | C115: Sarah | D115: Compressor 8 | E115: 1 | F115: 2480
A116: 2009-08-10 | B116: 1115 | C116: Dawn | D116: Compressor 7 | E116: 1 | F116: 25000
A117: 2009-08-10 | B117: 1116 | C117: Marsha | D117: Compressor 3 | E117: 1 | F117: 1525
A118: 2009-08-10 | B118: 1117 | C118: Wendy | D118: Compressor 3 | E118: 1 | F118: 1525
A119: 2009-08-10 | B119: 1118 | C119: Monique | D119: Compressor 7 | E119: 1 | F119: 25000
A120: 2009-08-11 | B120: 1119 | C120: Dawn | D120: Compressor 7 | E120: 1 | F120: 25000
A121: 2009-08-11 | B121: 1120 | C121: Wendy | D121: Compressor 8 | E121: 1 | F121: 2480
A122: 2009-08-11 | B122: 1121 | C122: Dawn | D122: Compressor 5 | E122: 1 | F122: 5400
A123: 2009-08-11 | B123: 1122 | C123: Wendy | D123: Compressor 4 | E123: 1 | F123: 6000
A124: 2009-08-12 | B124: 1123 | C124: Maurice | D124: Compressor 6 | E124: 1 | F124: 450
A125: 2009-08-12 | B125: 1124 | C125: Dawn | D125: Compressor 3 | E125: 1 | F125: 1525
A126: 2009-08-12 | B126: 1125 | C126: Monique | D126: Compressor 5 | E126: 2 | F126: 10800
A127: 2009-08-12 | B127: 1126 | C127: Sreysros | D127: Compressor 5 | E127: 1 | F127: 5400
A128: 2009-08-12 | B128: 1127 | C128: Wendy | D128: Compressor 7 | E128: 2 | F128: 50000
A129: 2009-08-13 | B129: 1128 | C129: Mykola | D129: Compressor 7 | E129: 3 | F129: 75000
A130: 2009-08-13 | B130: 1129 | C130: Jean | D130: Compressor 3 | E130: 3 | F130: 4575
A131: 2009-08-13 | B131: 1130 | C131: Christine | D131: Compressor 2 | E131: 1 | F131: 12000
A132: 2009-08-13 | B132: 1131 | C132: Alamzeb | D132: Compressor 1 | E132: 2 | F132: 1100
A133: 2009-08-13 | B133: 1132 | C133: Sarah | D133: Compressor 3 | E133: 1 | F133: 1525
A134: 2009-08-13 | B134: 1133 | C134: Alamzeb | D134: Compressor 5 | E134: 1 | F134: 5400
A135: 2009-08-14 | B135: 1134 | C135: Alamzeb | D135: Compressor 6 | E135: 3 | F135: 1350
A136: 2009-08-14 | B136: 1135 | C136: Jessica | D136: Compressor 8 | E136: 1 | F136: 2480
A137: 2009-08-14 | B137: 1136 | C137: Sarah | D137: Compressor 2 | E137: 1 | F137: 12000
A138: 2009-08-15 | B138: 1137 | C138: Zemmia | D138: Compressor 7 | E138: 2 | F138: 50000
A139: 2009-08-15 | B139: 1138 | C139: Shirley | D139: Compressor 6 | E139: 1 | F139: 450
A140: 2009-08-16 | B140: 1139 | C140: Donna | D140: Compressor 6 | E140: 1 | F140: 450
A141: 2009-08-16 | B141: 1140 | C141: Monique | D141: Compressor 4 | E141: 1 | F141: 6000
A142: 2009-08-16 | B142: 1141 | C142: Monique | D142: Compressor 6 | E142: 1 | F142: 450
A143: 2009-08-17 | B143: 1142 | C143: Julie | D143: Compressor 6 | E143: 2 | F143: 900
A144: 2009-08-17 | B144: 1143 | C144: Shirley | D144: Compressor 2 | E144: 1 | F144: 12000
A145: 2009-08-17 | B145: 1144 | C145: Amburg | D145: Compressor 7 | E145: 1 | F145: 25000
A146: 2009-08-17 | B146: 1145 | C146: Yishak | D146: Compressor 1 | E146: 3 | F146: 1650
A147: 2009-08-17 | B147: 1146 | C147: Christine | D147: Compressor 7 | E147: 2 | F147: 50000
A148: 2009-08-18 | B148: 1147 | C148: Monique | D148: Compressor 3 | E148: 1 | F148: 1525
A149: 2009-08-18 | B149: 1148 | C149: Tawnya | D149: Compressor 6 | E149: 1 | F149: 450
A150: 2009-08-18 | B150: 1149 | C150: Shegaw | D150: Compressor 4 | E150: 1 | F150: 6000
A151: 2009-08-18 | B151: 1150 | C151: Shegaw | D151: Compressor 6 | E151: 1 | F151: 450
A152: 2009-08-18 | B152: 1151 | C152: Jessica | D152: Compressor 5 | E152: 1 | F152: 5400
A153: 2009-08-19 | B153: 1152 | C153: Tawnya | D153: Compressor 6 | E153: 2 | F153: 900
A154: 2009-08-19 | B154: 1153 | C154: Dawn | D154: Compressor 4 | E154: 1 | F154: 6000
A155: 2009-08-19 | B155: 1154 | C155: Monique | D155: Compressor 3 | E155: 1 | F155: 1525
A156: 2009-08-19 | B156: 1155 | C156: Monique | D156: Compressor 5 | E156: 1 | F156: 5400
A157: 2009-08-20 | B157: 1156 | C157: Cynthia | D157: Compressor 3 | E157: 1 | F157: 1525
A158: 2009-08-20 | B158: 1157 | C158: Donna | D158: Compressor 7 | E158: 1 | F158: 25000
A159: 2009-08-20 | B159: 1158 | C159: Shirley | D159: Compressor 8 | E159: 1 | F159: 2480
A160: 2009-08-20 | B160: 1159 | C160: Tawnya | D160: Compressor 3 | E160: 2 | F160: 3050
A161: 2009-08-20 | B161: 1160 | C161: Sreysros | D161: Compressor 7 | E161: 2 | F161: 50000
A162: 2009-08-20 | B162: 1161 | C162: Marsha | D162: Compressor 7 | E162: 2 | F162: 50000
A163: 2009-08-21 | B163: 1162 | C163: Wendy | D163: Compressor 4 | E163: 1 | F163: 6000
A164: 2009-08-21 | B164: 1163 | C164: Christine | D164: Compressor 1 | E164: 3 | F164: 1650
A165: 2009-08-22 | B165: 1164 | C165: Alamzeb | D165: Compressor 2 | E165: 1 | F165: 12000
A166: 2009-08-22 | B166: 1165 | C166: Zemmia | D166: Compressor 7 | E166: 1 | F166: 25000
A167: 2009-08-22 | B167: 1166 | C167: Tawnya | D167: Compressor 8 | E167: 2 | F167: 4960
A168: 2009-08-22 | B168: 1167 | C168: Marsha | D168: Compressor 5 | E168: 1 | F168: 5400
A169: 2009-08-22 | B169: 1168 | C169: Donna | D169: Compressor 3 | E169: 1 | F169: 1525
A170: 2009-08-22 | B170: 1169 | C170: Sreysros | D170: Compressor 3 | E170: 1 | F170: 1525
A171: 2009-08-23 | B171: 1170 | C171: Christine | D171: Compressor 4 | E171: 1 | F171: 6000
A172: 2009-08-23 | B172: 1171 | C172: Zemmia | D172: Compressor 1 | E172: 3 | F172: 1650
A173: 2009-08-24 | B173: 1172 | C173: Sarah | D173: Compressor 7 | E173: 2 | F173: 50000
A174: 2009-08-24 | B174: 1173 | C174: Sarah | D174: Compressor 8 | E174: 1 | F174: 2480
A175: 2009-08-24 | B175: 1174 | C175: Yishak | D175: Compressor 1 | E175: 2 | F175: 1100
A176: 2009-08-24 | B176: 1175 | C176: Maurice | D176: Compressor 6 | E176: 2 | F176: 900
A177: 2009-08-24 | B177: 1176 | C177: Cynthia | D177: Compressor 1 | E177: 1 | F177: 550
A178: 2009-08-24 | B178: 1177 | C178: Zemmia | D178: Compressor 4 | E178: 2 | F178: 12000
A179: 2009-08-25 | B179: 1178 | C179: Mykola | D179: Compressor 3 | E179: 1 | F179: 1525
A180: 2009-08-25 | B180: 1179 | C180: Mykola | D180: Compressor 3 | E180: 2 | F180: 3050
A181: 2009-08-25 | B181: 1180 | C181: Jessica | D181: Compressor 8 | E181: 2 | F181: 4960
A182: 2009-08-25 | B182: 1181 | C182: Zemmia | D182: Compressor 8 | E182: 2 | F182: 4960
A183: 2009-08-25 | B183: 1182 | C183: Yishak | D183: Compressor 8 | E183: 1 | F183: 2480
A184: 2009-08-25 | B184: 1183 | C184: Mykola | D184: Compressor 6 | E184: 1 | F184: 450
A185: 2009-08-26 | B185: 1184 | C185: Wendy | D185: Compressor 8 | E185: 2 | F185: 4960
A186: 2009-08-26 | B186: 1185 | C186: Jean | D186: Compressor 3 | E186: 1 | F186: 1525
A187: 2009-08-26 | B187: 1186 | C187: Shegaw | D187: Compressor 2 | E187: 2 | F187: 24000
A188: 2009-08-26 | B188: 1187 | C188: Sreysros | D188: Compressor 5 | E188: 2 | F188: 10800
A189: 2009-08-27 | B189: 1188 | C189: Dawn | D189: Compressor 2 | E189: 1 | F189: 12000
A190: 2009-08-27 | B190: 1189 | C190: Yishak | D190: Compressor 5 | E190: 2 | F190: 10800
A191: 2009-08-28 | B191: 1190 | C191: Shegaw | D191: Compressor 2 | E191: 1 | F191: 12000
A192: 2009-08-28 | B192: 1191 | C192: Marsha | D192: Compressor 2 | E192: 2 | F192: 24000
A193: 2009-08-29 | B193: 1192 | C193: Alamzeb | D193: Compressor 4 | E193: 1 | F193: 6000
A194: 2009-08-29 | B194: 1193 | C194: Shegaw | D194: Compressor 7 | E194: 1 | F194: 25000
A195: 2009-08-29 | B195: 1194 | C195: Tawnya | D195: Compressor 1 | E195: 2 | F195: 1100
A196: 2009-08-29 | B196: 1195 | C196: Dawn | D196: Compressor 8 | E196: 1 | F196: 2480
A197: 2009-08-29 | B197: 1196 | C197: Christine | D197: Compressor 4 | E197: 2 | F197: 12000
A198: 2009-08-30 | B198: 1197 | C198: Wendy | D198: Compressor 6 | E198: 1 | F198: 450
A199: 2009-08-30 | B199: 1198 | C199: Tawnya | D199: Compressor 2 | E199: 1 | F199: 12000
A200: 2009-08-30 | B200: 1199 | C200: Maurice | D200: Compressor 2 | E200: 2 | F200: 24000
... 489 more rows

Sheet AVERAGE
A1: Test Score | C1: AVERAGE w 0 | D1: AVERAGE without 0 | E1: AVERAGE without 0 | G1: Test Score
A2: 0 | C2: =AVERAGE(A2:A46) -> 59.11111111 | G2: 0 | I2: Ctrl + H, Match Entire Cell
A3: 0 | G3: 0
A4: 77 | G4: 77
A5: 65 | G5: 65
A6: 71 | G6: 71
A7: 105 | G7: 105
A8: 23 | G8: 23
A9: 56 | G9: 56
A10: 75 | G10: 75
A11: 52 | G11: 52
A12: 79 | G12: 79
A13: 85 | G13: 85
A14: 24 | G14: 24
A15: 89 | G15: 89
A16: 98 | G16: 98
A17: 105 | G17: 105
A18: 88 | G18: 88
A19: 73 | G19: 73
A20: 0 | G20: 0
A21: 92 | G21: 92
A22: 54 | G22: 54
A23: 30 | G23: 30
A24: 33 | G24: 33
A25: 83 | G25: 83
A26: 71 | G26: 71
A27: 0 | G27: 0
A28: 27 | G28: 27
A29: 101 | G29: 101
A30: 93 | G30: 93
A31: 57 | G31: 57
A32: 70 | G32: 70
A33: 45 | G33: 45
A34: 80 | G34: 80
A35: 76 | G35: 76
A36: 101 | G36: 101
A37: 50 | G37: 50
A38: 43 | G38: 43
A39: 72 | G39: 72
A40: 79 | G40: 79
A41: 0 | G41: 0
A42: 86 | G42: 86
A43: 0 | G43: 0
A44: 24 | G44: 24
A45: 62 | G45: 62
A46: 66 | G46: 66

Sheet AVERAGE (2)
A1: Test Score | C1: AVERAGE w 0 | D1: AVERAGE without 0 | E1: AVERAGE without 0 | G1: Test Score
A2: 0 | C2: =AVERAGE(A2:A46) -> 59 | D2: =AVERAGEIF(A2:A46,">0") -> 68.07692308 | E2: =AVERAGE(G2:G46) -> 68.07692308 | I2: Ctrl + H, Match Entire Cell
A3: 0
A4: 77 | G4: 77
A5: 60 | G5: 60
A6: 71 | G6: 71
A7: 105 | G7: 105
A8: 23 | G8: 23
A9: 56 | G9: 56
A10: 75 | G10: 75
A11: 52 | G11: 52
A12: 79 | G12: 79
A13: 85 | G13: 85
A14: 24 | G14: 24
A15: 89 | G15: 89
A16: 98 | G16: 98
A17: 105 | G17: 105
A18: 88 | G18: 88
A19: 73 | G19: 73
A20: 0
A21: 92 | G21: 92
A22: 54 | G22: 54
A23: 30 | G23: 30
A24: 33 | G24: 33
A25: 83 | G25: 83
A26: 71 | G26: 71
A27: 0
A28: 27 | G28: 27
A29: 101 | G29: 101
A30: 93 | G30: 93
A31: 57 | G31: 57
A32: 70 | G32: 70
A33: 45 | G33: 45
A34: 80 | G34: 80
A35: 76 | G35: 76
A36: 101 | G36: 101
A37: 50 | G37: 50
A38: 43 | G38: 43
A39: 72 | G39: 72
A40: 79 | G40: 79
A41: 0
A42: 86 | G42: 86
A43: 0
A44: 24 | G44: 24
A45: 62 | G45: 62
A46: 66 | G46: 66

Sheet VLOOKUP
A1: List 1 | C1: List 2 | D1: VLOOKUP
A2: Fatima | C2: Fatima
A3: Joseph | C3: Joseph
A4: Gustave | C4: Chin
A5: Henry | C5: Gustave
A6: Sean | C6: Sioux
A7: Deanna | C7: Henry
A8: Rieko | C8: Sean
A9: April | C9: Deanna
A10: James | C10: Rieko
A11: Gurdeep | C11: April
A12: Joyce | C12: James
A13: Vera | C13: Gurdeep
A14: Oksana | C14: Phil
A15: Rose | C15: Adrean
A16: Ryan | C16: Joyce
A17: Amanda | C17: Vera
A18: Kathryn | C18: Oksana
A19: Anna | C19: Rose
C20: Ryan
C21: Amanda
C22: Kathryn
C23: Anna
C24: Sue
